Workbook

Sheet Esquema
O4: Ficha | Q4: Contenido
O5: ELL | Q5: Cálculo del Nivel Económico de Fugas
O6: N1 | Q6: Coeficiente N1
O7: NRR | Q7: Calculo del Indice Natural de Aumento de Fugas
O8: CV - CI | Q8: Coste Marginal del agua
Q9: Costes de Inspeccion
O10: ROT. NOT | Q10: Valores de referencia para el calculo de las fugas para roturas notificadas
O11: Caudales nocturnos | Q11: Calculo del NRR con el método de los minimos caudales nocturnos
O12: Grafico Q noct | Q12: Gráfico de los caudales nocturnos y regresión lineal
O13: Volumen mensual | Q13: Cálculo del NRR utilizando los volumenes inyectados y facturados mensuales
O14: ELL (método 2) | Q14: Cálculo del Nivel Económico de Fugas - Método 2
O15: Sensibilidad N1 | Q15: Analisis de sensibilidad del coeficiente N1
O16: Sensibilidad Presion | Q16: Analisis de sensibilidad de la presion
O17: Sensibilidad CI | Q17: Analisis de los costes de inspeccion
O18: Sensibilidad CA | Q18: Analisis de los costes ambientales (Coste Marginal del Agua)
O22: Tipo de celdas
O23: 1 | P23: Datos a Ingresar
O24: 2 | P24: Celdas formuladas
O25: 3 | P25: Resultados

Sheet ELL
F1: Basico 1 | G1: Basico 2 | H1: Intermedio | I1: Avanzado | P1: Basico | Q1: Intermedio | R1: Avanzado | S1: Otros | U1: Referencia | V1: Calculado
A2: 1 | B2: 2 | C2: 3 | D2: 4 | E2: 5 | F2: 6 | G2: 7 | H2: 8 | I2: 9 | J2: 10 | K2: 11 | L2: 12 | M2: 13 | N2: 14 | O2: 15 | P2: 16 | Q2: 17 | R2: 18 | S2: 19 | T2: 20 | U2: 21 | V2: 22 | W2: 23 | X2: 24 | Y2: 25 | Z2: 26 | AA2: 27 | AB2: 28 | AC2: 29 | AD2: 30 | AF2: 32 | AG2: 33 | AH2: 34 | AI2: 35 | AJ2: 36 | AK2: 37 | AL2: 38 | AM2: 39 | AN2: 40 | AO2: 41 | AP2: 42 | AQ2: 43 | AR2: 44 | AS2: 45 | AT2: 46 | AU2: 47 | AV2: 48 | AW2: 49 | AX2: 50 | AY2: 51 | AZ2: 52 | BA2: 53 | BB2: 54 | BC2: 55 | BD2: 56 | BE2: 57 | BF2: 58 | BG2: 59 | BH2: 60 | BI2: 61 | BJ2: 62 | BK2: 63 | BL2: 64 | BM2: 65 | BN2: 66 | BO2: 67 | BP2: 68 | BQ2: 69 | BR2: 70 | BS2: 71 | BT2: 72 | BU2: 73 | BV2: 74 | BW2: 75 | BX2: 76 | BY2: 77 | BZ2: 78 | CA2: 79 | CB2: 80 | CC2: 81 | CD2: 82 | CE2: 83 | CF2: 84 | CG2: 85 | CH2: 86 | CI2: 87 | CJ2: 88 | CK2: 89 | CL2: 90 | CM2: 91 | CN2: 92 | CO2: 93 | CP2: 94 | CQ2: 95 | CR2: 96 | CS2: 97 | CT2: 98 | CU2: 99 | CV2: 100 | CW2: 101 | CX2: 102 | CY2: 103 | CZ2: 104 | DA2: 105 | DB2: 106 | DC2: 107 | DD2: 108 | DE2: 109 | DF2: 110 | DG2: 111 | DH2: 112 | DI2: 113 | DJ2: 114 | DK2: 115 | DL2: 116 | DM2: 117 | DN2: 118 | DO2: 119 | DP2: 120 | DQ2: 121 | DR2: 122 | DS2: 123 | DT2: 124 | DU2: 125 | DV2: 126 | DW2: 127 | DX2: 128 | DY2: 129 | DZ2: 130 | EA2: 131 | EB2: 132 | EC2: 133 | ED2: 134 | EE2: 135 | EF2: 136 | EG2: 137 | EH2: 138 | EI2: 139 | EJ2: 140 | EK2: 141 | EL2: 142 | EM2: 143 | EN2: 144 | EO2: 145 | EP2: 146 | EQ2: 147 | ER2: 148 | ES2: 149 | ET2: 150 | EU2: 151 | EV2: 152 | EW2: 153 | EX2: 154 | EY2: 155 | EZ2: 156 | FA2: 157 | FB2: 158 | FC2: 159 | FD2: 160 | FE2: 161 | FF2: 162 | FG2: 163 | FH2: 164 | FI2: 165 | FJ2: 166 | FK2: 167 | FL2: 168 | FM2: 169 | FN2: 170 | FO2: 171 | FP2: 172 | FQ2: 173 | FR2: 174 | FS2: 175 | FT2: 176
B3: INFORMACION | E3: FUGAS POR ROTURAS NO NOTIFICADAS | M3: FUGAS POR ROTURAS NOTIFICADAS | U3: FUGAS DE FONDO | AC3: NIVEL ECONÓMICO DE FUGAS | AE3: No editar | AF3: N1 | CG3: N1 | DA3: Presion | FA3: Costes de inspeccion
CG4: Fugas por Rot. Not. | CN4: Fugas de fondo
E5: Basico 1 | P5: Intermedio | Q5: Referencia | R5: Referencia | X5: Intermedio | AF5: Fugas por roturas notificadas | AW5: Fugas de fondo | BN5: Fugas rot not | BP5: ELL | CG5: Basico | CI5: Intermedio | CK5: Avanzado | CN5: Basico | CP5: Intermedio | CR5: Avanzado | CU5: Fugas por Rot Not | CW5: ELL | DA5: Originales | DF5: Fugas por Roturas Notificadas | DU5: Fugas de fondo | EL5: ELL | FA5: Fugas por Roturas no Notificadas | FF5: Fugas por Roturas Notificadas | FH5: Fugas de fondo | FJ5: ELL | FO5: Costes Ambientales
B6: Codigo | C6: Sector Analizado / Direccion | E6: NRR (m3/año/año) | F6: Longitud de tuberia (km) | G6: Costes de intervencion (USD) | H6: Coste del agua (USD/m3) | I6: Frecuencia Optima de Inspeccion (Años) | J6: Porcentaje Anualmente Inspeccionado | K6: Caudal fugado (m3/año) | M6: Roturas por año en tuberias | N6: Roturas por año en acometidas | O6: Presion promedio (mca) | P6: N1 | Q6: Caudal tuberias (m3/año) | R6: Caudal acometidas (m3/año) | S6: Caudal fugado (m3/año) | U6: Longitud de tuberias (km) | V6: Numero de acometidas | W6: Presion promedio (mca) | X6: N1 | Y6: Caudal tuberias (m3/año) | Z6: Caudal acometidas (m3/año) | AA6: Caudal fugado (m3/año) | AC6: ELL (m3) | AF6: 0.5 | AG6: 0.6 | AH6: 0.7 | AI6: 0.8 | AJ6: 0.9 | AK6: 1 | AL6: 1.1 | AM6: 1.2 | AN6: 1.3 | AO6: 1.4 | AP6: 1.5 | AQ6: 1.6 | AR6: 1.7 | AS6: 1.8 | AT6: 1.9 | AU6: 2 | AW6: 0.5 | AX6: 0.6 | AY6: 0.7 | AZ6: 0.8 | BA6: 0.9 | BB6: 1 | BC6: 1.1 | BD6: 1.2 | BE6: 1.3 | BF6: 1.4 | BG6: 1.5 | BH6: 1.6 | BI6: 1.7 | BJ6: 1.8 | BK6: 1.9 | BL6: 2 | BP6: =+AW6 -> 0.5 | BQ6: =+AX6 -> 0.6 | BR6: 0.7 | BS6: 0.8 | BT6: 0.9 | BU6: 1 | BV6: 1.1 | BW6: 1.2 | BX6: 1.3 | BY6: 1.4 | BZ6: 1.5 | CA6: 1.6 | CB6: 1.7 | CC6: =+BJ6 -> 1.8 | CD6: =+BK6 -> 1.9 | CE6: 2 | CG6: N1 | CH6: Perdidas | CI6: N1 | CJ6: Perdidas | CK6: N1 | CL6: Perdidas | CN6: N1 | CO6: Perdidas | CP6: N1 | CQ6: Perdidas | CR6: N1 | CS6: Perdidas | CW6: Basico | CX6: Intermedio | CY6: Avanzado | DA6: Presion Promedio | DB6: Fugas por roturas notificadas | DC6: Fugas de fondo | DD6: ELL | DF6: 15 | DG6: 20 | DH6: 25 | DI6: 30 | DJ6: 35 | DK6: 40 | DL6: 45 | DM6: 50 | DN6: 55 | DO6: 60 | DP6: 65 | DQ6: 70 | DR6: 75 | DS6: 80 | DU6: 15 | DV6: 20 | DW6: 25 | DX6: 30 | DY6: 35 | DZ6: 40 | EA6: 45 | EB6: 50 | EC6: 55 | ED6: 60 | EE6: 65 | EF6: 70 | EG6: 75 | EH6: 80 | EJ6: Fugas por Rot. no Notificadas | EL6: 15 | EM6: 20 | EN6: 25 | EO6: 30 | EP6: 35 | EQ6: 40 | ER6: 45 | ES6: 50 | ET6: 55 | EU6: 60 | EV6: 65 | EW6: 70 | EX6: 75 | EY6: 80 | FA6: =+Costes!$I$9 -> Grupo geofono | FB6: =+Costes!$J$9 -> Soundstick | FC6: =+Costes!$K$9 -> 0 | FD6: =+Costes!$L$9 -> 0 | FJ6: =+Costes!$I$9 -> Grupo geofono | FK6: =+Costes!$J$9 -> Soundstick | FL6: =+Costes!$K$9 -> 0 | FM6: =+Costes!$L$9 -> 0 | FO6: 0 | FP6: 0.25 | FQ6: 0.5 | FR6: 0.75 | FS6: 1 | FT6: 1.25 | FU6: 1.5 | FV6: 1.75 | FW6: 2 | FX6: 2.25 | FY6: 2.5 | FZ6: 2.75 | GA6: 3 | GB6: 3.25 | GC6: 3.5 | GD6: 3.75 | GE6: 4 | GF6: 4.25 | GG6: 4.5 | GH6: 4.75 | GI6: 5
B7: CTC-029 | C7: Brasil - Av. Quito - Calle 22 SO - Tungurahua | E7: =IFERROR((IF($E$5=$F$1,VLOOKUP(C7,NRR!$C$9:$Y$28,3,FALSE),IF(ELL!$E$5=ELL!$G$1,VLOOKUP(C7,NRR!$C$9:$Y$28,7,FALSE),IF(ELL!$E$5=ELL!$H$1,VLOOKUP(C7,NRR!$C$9:$Y$28,19,FALSE),IF(ELL!$E$5=ELL!$I$1,VLOOKUP(C7,NRR!$C$9:$Y$28,22,FALSE),"Elegir Metodo"))))),"0") -> 8592.322633 | F7: 11.77897 | G7: =Costes!$C$3*ELL!F7 -> 547.0719059 | H7: =+Costes!$C$2 -> 0.06 | I7: =IFERROR(SQRT((2*G7)/(H7*E7)),"0") -> 1.456821328 | J7: =IFERROR(100/I7,"0") -> 68.64259745 | K7: =IFERROR(J7*G7/H7/100,"0") -> 6258.739435 | M7: 3 | N7: 12 | O7: 19.9 | P7: =IFERROR((IF($P$5=$P$1,VLOOKUP(C7,'N1'!$C$7:$Q$26,5,FALSE),IF(ELL!$P$5=ELL!$Q$1,VLOOKUP(ELL!C7,'N1'!$C$7:$Q$26,9,FALSE),IF(ELL!$P$5=ELL!$R$1,VLOOKUP(ELL!C7,'N1'!$C$7:$Q$26,15,FALSE),IF(ELL!$P$5=ELL!$S$1,VLOOKUP(ELL!C7,'N1'!$C$7:$S$26,17,FALSE),"Elegir Metodo"))))),"0") -> 0.9936372366 | Q7: =IFERROR(((O7/50)^P7)*((IF($Q$5=$U$1,864,'Rot. Not'!$E$5))*M7),"0") -> 1037.681128 | R7: =IFERROR(((O7/50)^P7)*((IF($R$5=$U$1,307,'Rot. Not'!$E$10))*N7),"0") -> 1474.852345 | S7: =IFERROR(Q7+R7,"0") -> 2512.533473 | U7: 11.77897 | V7: 842 | W7: 19.9 | X7: =IFERROR((IF($X$5=$P$1,VLOOKUP(C7,'N1'!$C$7:$Q$26,5,FALSE),IF(ELL!$X$5=ELL!$Q$1,VLOOKUP(ELL!C7,'N1'!$C$7:$Q$26,9,FALSE),IF(ELL!$X$5=ELL!$R$1,VLOOKUP(ELL!C7,'N1'!$C$7:$Q$26,15,FALSE),IF(ELL!$X$5=ELL!$S$1,VLOOKUP(ELL!C7,'N1'!$C$7:$S$26,17,FALSE),"Elegir Metodo"))))),"0") -> 0.9936372366 | Y7: =IFERROR(+((W7/50)^X7)*(20*U7*(24*365/1000)),"0") -> 826.1717466 | Z7: =IFERROR(+((W7/50)^X7)*(1.25*V7*(24*365/1000)),"0") -> 3691.094227 | AA7: =IFERROR(IF(Y7+Z7=0,"0",Y7+Z7),"0") -> 4517.265973 | AC7: =IFERROR(+K7+S7+AA7,"0") -> 13288.53888 | AF7: 3959.355257 | AG7: 3610.877692 | AH7: 3293.070932 | AI7: 3003.235525 | AJ7: 2738.90961 | AK7: 2497.848 | AL7: 2278.003118 | AM7: 2077.507601 | AN7: 1894.658439 | AO7: 1727.902511 | AP7: 1575.823392 | AQ7: 1437.129321 | AR7: 1310.642231 | AS7: 1195.287739 | AT7: 1090.086025 | AU7: 994.143504 | AW7: 7118.496517 | AX7: 6491.971194 | AY7: 5920.588692 | AZ7: 5399.495686 | BA7: 4924.266012 | BB7: 4490.863067 | BC7: 4095.605525 | BD7: 3735.136067 | BE7: 3406.392866 | BF7: 3106.583575 | BG7: 2833.161614 | BH7: 2583.804535 | BI7: 2356.394299 | BJ7: 2148.999283 | BK7: 1959.857873 | BL7: 1787.3635 | BN7: 6258.739435 | BP7: =IFERROR((AW7+AF7+$BN7),"-") -> 17336.59121 | BQ7: =IFERROR((AX7+AG7+$BN7),"-") -> 16361.58832 | BR7: 15472.39906 | BS7: 14661.47065 | BT7: 13921.91506 | BU7: 13247.4505 | BV7: 12632.34808 | BW7: 12071.3831 | BX7: 11559.79074 | BY7: 11093.22552 | BZ7: 10667.72444 | CA7: 10279.67329 | CB7: 9925.775965 | CC7: 9603.026458 | CD7: 9308.683333 | CE7: 9040.24644 | CG7: 1 | CH7: 2497.848 | CI7: 0.9936372366 | CJ7: 2512.533473 | CK7: 0.9005635344 | CL7: 2737.487975 | CN7: 1 | CO7: 4490.863067 | CP7: 0.9936372366 | CQ7: 4517.265973 | CR7: 0.9005635344 | CS7: 4921.710065 | CU7: =+BN7 -> 6258.739435 | CW7: =IFERROR(CH7+CO7+$CU7,"-") -> 13247.4505 | CX7: =IFERROR(CJ7+CQ7+$CU7,"-") -> 13288.53888 | CY7: =IFERROR(CL7+CS7+$CU7,"-") -> 13917.93748 | DA7: 19.9 | DB7: 2512.533473 | DC7: 4517.265973 | DD7: 13288.53888 | DF7: 1897.278754 | DG7: 2525.078734 | DH7: 3151.870184 | DI7: 3777.859101 | DJ7: 4403.181418 | DK7: 5027.933643 | DL7: 5652.187867 | DM7: 6276 | DN7: 6899.414677 | DO7: 7522.468355 | DP7: 8145.191374 | DQ7: 8767.609377 | DR7: 9389.744325 | DS7: 10011.61523 | DU7: 3411.103911 | DV7: 4539.821009 | DW7: 5666.724876 | DX7: 6792.185876 | DY7: 7916.448401 | DZ7: 9039.685961 | EA7: 10162.02817 | EB7: 11283.57554 | EC7: 12404.40834 | ED7: 13524.59209 | EE7: 14644.18135 | EF7: 15763.22224 | EG7: 16881.75421 | EH7: 17999.81147 | EJ7: 6258.739435 | EL7: =+IFERROR(DF7+DU7+$EJ7,0) -> 11567.1221 | EM7: =+IFERROR(DG7+DV7+$EJ7,0) -> 13323.63918 | EN7: 15077.3345 | EO7: 16828.78441 | EP7: 18578.36925 | EQ7: 20326.35904 | ER7: 22072.95547 | ES7: 23818.31498 | ET7: 25562.56245 | EU7: 27305.79988 | EV7: 29048.11216 | EW7: 30789.57105 | EX7: 32530.23797 | EY7: 34270.16614 | FA7: 6258.739435 | FB7: 6832.534655 | FC7: 0 | FD7: 0 | FF7: 2512.533473 | FH7: 4517.265973 | FJ7: =IF(FA7=0,0,FA7+$FF7+$FH7) -> 13288.53888 | FK7: =IF(FB7=0,0,FB7+$FF7+$FH7) -> 13862.3341 | FL7: 0 | FM7: 0 | FO7: 13288.53888 | FP7: 9783.277692 | FQ7: 9078.452819 | FR7: 8733.212563 | FS7: 8518.850417 | FT7: 8369.250502 | FU7: 8257.239235 | FV7: 8169.322745 | FW7: 8097.941186 | FX7: 8038.486639 | FY7: 7987.969325 | FZ7: 7944.353411 | GA7: 7906.198265 | GB7: 7872.451919 | GC7: 7842.325878 | GD7: 7815.215925 | GE7: 7790.650208 | GF7: 7768.254151 | GG7: 7747.726097 | GH7: 7728.82002 | GI7: 7711.332994
B8: CTC-030 | C8: Calle 22 SO - Av. Quito - Venezuela - Tungurahua | E8: =IFERROR((IF($E$5=$F$1,VLOOKUP(C8,NRR!$C$9:$Y$28,3,FALSE),IF(ELL!$E$5=ELL!$G$1,VLOOKUP(C8,NRR!$C$9:$Y$28,7,FALSE),IF(ELL!$E$5=ELL!$H$1,VLOOKUP(C8,NRR!$C$9:$Y$28,19,FALSE),IF(ELL!$E$5=ELL!$I$1,VLOOKUP(C8,NRR!$C$9:$Y$28,22,FALSE),"Elegir Metodo"))))),"0") -> 9214.806814 | F8: 13.1108 | G8: =Costes!$C$3*ELL!F8 -> 608.9284838 | H8: =+Costes!$C$2 -> 0.06 | I8: =IFERROR(SQRT((2*G8)/(H8*E8)),"0") -> 1.48415548 | J8: =IFERROR(100/I8,"0") -> 67.37838545 | K8: =IFERROR(J8*G8/H8/100,"0") -> 6838.103016 | M8: 3 | N8: 16 | O8: 19.9 | P8: =IFERROR((IF($P$5=$P$1,VLOOKUP(C8,'N1'!$C$7:$Q$26,5,FALSE),IF(ELL!$P$5=ELL!$Q$1,VLOOKUP(ELL!C8,'N1'!$C$7:$Q$26,9,FALSE),IF(ELL!$P$5=ELL!$R$1,VLOOKUP(ELL!C8,'N1'!$C$7:$Q$26,15,FALSE),IF(ELL!$P$5=ELL!$S$1,VLOOKUP(ELL!C8,'N1'!$C$7:$S$26,17,FALSE),"Elegir Metodo"))))),"0") -> 0.8100534751 | Q8: =IFERROR(((O8/50)^P8)*((IF($Q$5=$U$1,864,'Rot. Not'!$E$5))*M8),"0") -> 1228.906636 | R8: =IFERROR(((O8/50)^P8)*((IF($R$5=$U$1,307,'Rot. Not'!$E$10))*N8),"0") -> 2328.853933 | S8: =IFERROR(Q8+R8,"0") -> 3557.760569 | U8: 13.1108 | V8: 903 | W8: 19.9 | X8: =IFERROR((IF($X$5=$P$1,VLOOKUP(C8,'N1'!$C$7:$Q$26,5,FALSE),IF(ELL!$X$5=ELL!$Q$1,VLOOKUP(ELL!C8,'N1'!$C$7:$Q$26,9,FALSE),IF(ELL!$X$5=ELL!$R$1,VLOOKUP(ELL!C8,'N1'!$C$7:$Q$26,15,FALSE),IF(ELL!$X$5=ELL!$S$1,VLOOKUP(ELL!C8,'N1'!$C$7:$S$26,17,FALSE),"Elegir Metodo"))))),"0") -> 0.8100534751 | Y8: =IFERROR(+((W8/50)^X8)*(20*U8*(24*365/1000)),"0") -> 1089.048413 | Z8: =IFERROR(+((W8/50)^X8)*(1.25*V8*(24*365/1000)),"0") -> 4687.980123 | AA8: =IFERROR(IF(Y8+Z8=0,"0",Y8+Z8),"0") -> 5777.028535 | AC8: =IFERROR(+K8+S8+AA8,"0") -> 16172.89212 | AF8: 4734.066578 | AG8: 4317.403792 | AH8: 3937.413045 | AI8: 3590.866696 | AJ8: 3274.821178 | AK8: 2986.592 | AL8: 2723.730943 | AM8: 2484.005264 | AN8: 2265.378733 | AO8: 2065.994335 | AP8: 1884.158498 | AQ8: 1718.326709 | AR8: 1567.090392 | AS8: 1429.164945 | AT8: 1303.378829 | AU8: 1188.663616 | AW8: 7687.093379 | AX8: 7010.523733 | AY8: 6393.501495 | AZ8: 5830.785677 | BA8: 5317.596568 | BB8: 4849.57514 | BC8: 4422.746016 | BD8: 4033.483708 | BE8: 3678.481823 | BF8: 3354.724972 | BG8: 3059.463165 | BH8: 2790.188446 | BI8: 2544.613595 | BJ8: 2320.652699 | BK8: 2116.403434 | BL8: 1930.130906 | BN8: 6838.103016 | BP8: =IFERROR((AW8+AF8+$BN8),"-") -> 19259.26297 | BQ8: =IFERROR((AX8+AG8+$BN8),"-") -> 18166.03054 | BR8: =IFERROR((AY8+AH8+$BN8),"-") -> 17169.01756 | BS8: =IFERROR((AZ8+AI8+$BN8),"-") -> 16259.75539 | BT8: =IFERROR((BA8+AJ8+$BN8),"-") -> 15430.52076 | BU8: =IFERROR((BB8+AK8+$BN8),"-") -> 14674.27016 | BV8: =IFERROR((BC8+AL8+$BN8),"-") -> 13984.57997 | BW8: =IFERROR((BD8+AM8+$BN8),"-") -> 13355.59199 | BX8: =IFERROR((BE8+AN8+$BN8),"-") -> 12781.96357 | BY8: =IFERROR((BF8+AO8+$BN8),"-") -> 12258.82232 | BZ8: =IFERROR((BG8+AP8+$BN8),"-") -> 11781.72468 | CA8: =IFERROR((BH8+AQ8+$BN8),"-") -> 11346.61817 | CB8: =IFERROR((BI8+AR8+$BN8),"-") -> 10949.807 | CC8: =IFERROR((BJ8+AS8+$BN8),"-") -> 10587.92066 | CD8: =IFERROR((BK8+AT8+$BN8),"-") -> 10257.88528 | CE8: =IFERROR((BL8+AU8+$BN8),"-") -> 9956.897537 | CG8: 1 | CH8: 2986.592 | CI8: 0.8100534751 | CJ8: 3557.760569 | CK8: 0.7967296264 | CL8: 3601.702314 | CN8: 1 | CO8: 4849.57514 | CP8: 0.8100534751 | CQ8: 5777.028535 | CR8: 0.7967296264 | CS8: 5848.380362 | CU8: =+BN8 -> 6838.103016 | CW8: 14674.27016 | CX8: 16172.89212 | CY8: 16288.18569 | DA8: 19.9 | DB8: 3557.760569 | DC8: 5777.028535 | DD8: 16172.89212 | DF8: 2829.652344 | DG8: 3572.235964 | DH8: 4279.986816 | DI8: 4961.162757 | DJ8: 5621.004777 | DK8: 6263.117113 | DL8: 6890.120403 | DM8: 7504 | DN8: 8106.308244 | DO8: 8698.28972 | DP8: 9280.962841 | DQ8: 9855.175181 | DR8: 10421.64227 | DS8: 10980.9756 | DU8: 4594.739309 | DV8: 5800.533425 | DW8: 6949.766712 | DX8: 8055.848127 | DY8: 9127.287901 | DZ8: 10169.93853 | EA8: 11188.05535 | EB8: 12184.86216 | EC8: 13162.87961 | ED8: 14124.12863 | EE8: 15070.26292 | EF8: 16002.65873 | EG8: 16922.47795 | EH8: 17830.7135 | EJ8: 6838.103016 | EL8: =+IFERROR(DF8+DU8+$EJ8,0) -> 14262.49467 | EM8: =+IFERROR(DG8+DV8+$EJ8,0) -> 16210.8724 | EN8: =+IFERROR(DH8+DW8+$EJ8,0) -> 18067.85654 | EO8: =+IFERROR(DI8+DX8+$EJ8,0) -> 19855.1139 | EP8: =+IFERROR(DJ8+DY8+$EJ8,0) -> 21586.39569 | EQ8: =+IFERROR(DK8+DZ8+$EJ8,0) -> 23271.15866 | ER8: =+IFERROR(DL8+EA8+$EJ8,0) -> 24916.27877 | ES8: =+IFERROR(DM8+EB8+$EJ8,0) -> 26526.96518 | ET8: =+IFERROR(DN8+EC8+$EJ8,0) -> 28107.29087 | EU8: =+IFERROR(DO8+ED8+$EJ8,0) -> 29660.52137 | EV8: =+IFERROR(DP8+EE8+$EJ8,0) -> 31189.32877 | EW8: =+IFERROR(DQ8+EF8+$EJ8,0) -> 32695.93693 | EX8: =+IFERROR(DR8+EG8+$EJ8,0) -> 34182.22324 | EY8: =+IFERROR(DS8+EH8+$EJ8,0) -> 35649.79212 | FA8: 6838.103016 | FB8: 7465.013732 | FC8: 0 | FD8: 0 | FF8: 3557.760569 | FH8: 5777.028535 | FJ8: =IF(FA8=0,0,FA8+$FF8+$FH8) -> 16172.89212 | FK8: =IF(FB8=0,0,FB8+$FF8+$FH8) -> 16799.80284 | FL8: =IF(FC8=0,0,FC8+$FF8+$FH8) -> 0 | FM8: =IF(FD8=0,0,FD8+$FF8+$FH8) -> 0 | FO8: 16172.89212 | FP8: 12343.15334 | FQ8: 11573.08372 | FR8: 11195.88501 | FS8: 10961.67964 | FT8: 10798.23145 | FU8: 10675.85144 | FV8: 10579.79663 | FW8: 10501.80737 | FX8: 10436.84919 | FY8: 10381.65555 | FZ8: 10334.00217 | GA8: 10292.31505 | GB8: 10255.44485 | GC8: 10222.53008 | GD8: 10192.91059 | GE8: 10166.07086 | GF8: 10141.60162 | GG8: 10119.17331 | GH8: 10098.51713 | GI8: 10079.41135
B9: CTC-031 | C9: Venezuela - Av. Quito - Vacas Galindo - Tungurahua | E9: =IFERROR((IF($E$5=$F$1,VLOOKUP(C9,NRR!$C$9:$Y$28,3,FALSE),IF(ELL!$E$5=ELL!$G$1,VLOOKUP(C9,NRR!$C$9:$Y$28,7,FALSE),IF(ELL!$E$5=ELL!$H$1,VLOOKUP(C9,NRR!$C$9:$Y$28,19,FALSE),IF(ELL!$E$5=ELL!$I$1,VLOOKUP(C9,NRR!$C$9:$Y$28,22,FALSE),"Elegir Metodo"))))),"0") -> 12541.52555 | F9: 12.78488 | G9: =Costes!$C$3*ELL!F9 -> 593.7911946 | H9: =+Costes!$C$2 -> 0.06 | I9: 1.256264436 | J9: 79.6010753 | K9: 7877.736266 | M9: 1 | N9: 14 | O9: 19.9 | P9: =IFERROR((IF($P$5=$P$1,VLOOKUP(C9,'N1'!$C$7:$Q$26,5,FALSE),IF(ELL!$P$5=ELL!$Q$1,VLOOKUP(ELL!C9,'N1'!$C$7:$Q$26,9,FALSE),IF(ELL!$P$5=ELL!$R$1,VLOOKUP(ELL!C9,'N1'!$C$7:$Q$26,15,FALSE),IF(ELL!$P$5=ELL!$S$1,VLOOKUP(ELL!C9,'N1'!$C$7:$S$26,17,FALSE),"Elegir Metodo"))))),"0") -> 1.058308974 | Q9: =IFERROR(((O9/50)^P9)*((IF($Q$5=$U$1,864,'Rot. Not'!$E$5))*M9),"0") -> 325.8865278 | R9: =IFERROR(((O9/50)^P9)*((IF($R$5=$U$1,307,'Rot. Not'!$E$10))*N9),"0") -> 1621.134602 | S9: 1947.02113 | U9: 12.78488 | V9: 1229 | W9: 19.9 | X9: =IFERROR((IF($X$5=$P$1,VLOOKUP(C9,'N1'!$C$7:$Q$26,5,FALSE),IF(ELL!$X$5=ELL!$Q$1,VLOOKUP(ELL!C9,'N1'!$C$7:$Q$26,9,FALSE),IF(ELL!$X$5=ELL!$R$1,VLOOKUP(ELL!C9,'N1'!$C$7:$Q$26,15,FALSE),IF(ELL!$X$5=ELL!$S$1,VLOOKUP(ELL!C9,'N1'!$C$7:$S$26,17,FALSE),"Elegir Metodo"))))),"0") -> 1.058308974 | Y9: 844.8574195 | Z9: 5075.965558 | AA9: 5920.822977 | AC9: 15745.58037 | AF9: 3256.56339 | AG9: 2969.941148 | AH9: 2708.545594 | AI9: 2470.156434 | AJ9: 2252.74879 | AK9: 2054.476 | AL9: 1873.653935 | AM9: 1708.746692 | AN9: 1558.353547 | AO9: 1421.197062 | AP9: 1296.112229 | AQ9: 1182.036577 | AR9: 1078.001146 | AS9: 983.1222608 | AT9: 896.5940184 | AU9: 817.681448 | AW9: 9903.095065 | AX9: 9031.486879 | AY9: 8236.592167 | AZ9: 7511.659092 | BA9: 6850.530069 | BB9: 6247.589468 | BC9: 5697.71591 | BD9: 5196.238766 | BE9: 4738.898488 | BF9: 4321.810427 | BG9: 3941.431836 | BH9: 3594.531778 | BI9: 3278.163682 | BJ9: 2989.640318 | BK9: 2726.510968 | BL9: 2486.540608 | BN9: 7877.736266 | BP9: 21037.39472 | BQ9: 19879.16429 | BR9: 18822.87403 | BS9: 17859.55179 | BT9: 16981.01512 | BU9: 16179.80173 | BV9: 15449.10611 | BW9: 14782.72172 | BX9: 14174.9883 | BY9: 13620.74376 | BZ9: 13115.28033 | CA9: 12654.30462 | CB9: 12233.90109 | CC9: 11850.49885 | CD9: 11500.84125 | CE9: 11181.95832 | CG9: 1 | CH9: 2054.476 | CI9: 1.058308974 | CJ9: 1947.02113 | CK9: 1.191581853 | CL9: 1722.050685 | CN9: 1 | CO9: 6247.589468 | CP9: 1.058308974 | CQ9: 5920.822977 | CR9: 1.191581853 | CS9: 5236.695743 | CU9: 7877.736266 | CW9: 16179.80173 | CX9: 15745.58037 | CY9: 14836.48269 | DA9: 19.9 | DB9: 1947.02113 | DC9: 5920.822977 | DD9: 15745.58037 | DF9: 1443.612825 | DG9: 1957.377167 | DH9: 2478.764424 | DI9: 3006.308035 | DJ9: 3539.026918 | DK9: 4076.216699 | DL9: 4617.346189 | DM9: 5162 | DN9: 5709.844098 | DO9: 6260.603843 | DP9: 6814.049317 | DQ9: 7369.985132 | DR9: 7928.24313 | DS9: 8488.677018 | DU9: 4389.975976 | DV9: 5952.315322 | DW9: 7537.835686 | DX9: 9142.077308 | DY9: 10762.05675 | DZ9: 12395.63203 | EA9: 14041.18784 | EB9: 15697.46098 | EC9: 17363.43566 | ED9: 19038.27674 | EE9: 20721.28501 | EF9: 22411.86633 | EG9: 24109.50933 | EH9: 25813.76913 | EJ9: 7877.736266 | EL9: 13711.32507 | EM9: 15787.42875 | EN9: 17894.33638 | EO9: 20026.12161 | EP9: 22178.81993 | EQ9: 24349.585 | ER9: 26536.27029 | ES9: 28737.19724 | ET9: 30951.01603 | EU9: 33176.61684 | EV9: 35413.0706 | EW9: 37659.58773 | EX9: 39915.48872 | EY9: 42180.18241 | FA9: 7877.736266 | FB9: 8599.95956 | FC9: 0 | FD9: 0 | FF9: 1947.02113 | FH9: 5920.822977 | FJ9: 15745.58037 | FK9: 16467.80367 | FL9: 0 | FM9: 0 | FO9: 15745.58037 | FP9: 11333.586 | FQ9: 10446.43859 | FR9: 10011.89235 | FS9: 9742.079478 | FT9: 9553.781389 | FU9: 9412.795297 | FV9: 9302.136764 | FW9: 9212.290382 | FX9: 9137.456265 | FY9: 9073.871243 | FZ9: 9018.972862 | GA9: 8970.947827 | GB9: 8928.472052 | GC9: 8890.553073 | GD9: 8856.430378 | GE9: 8825.510056 | GF9: 8797.320636 | GG9: 8771.482431 | GH9: 8747.685772 | GI9: 8725.67524
E10: =IFERROR((IF($E$5=$F$1,VLOOKUP(C10,NRR!$C$9:$Y$28,3,FALSE),IF(ELL!$E$5=ELL!$G$1,VLOOKUP(C10,NRR!$C$9:$Y$28,7,FALSE),IF(ELL!$E$5=ELL!$H$1,VLOOKUP(C10,NRR!$C$9:$Y$28,19,FALSE),IF(ELL!$E$5=ELL!$I$1,VLOOKUP(C10,NRR!$C$9:$Y$28,22,FALSE),"Elegir Metodo"))))),"0") -> 0 | G10: =Costes!$C$3*ELL!F10 -> 0 | H10: =+Costes!$C$2 -> 0.06 | I10: 0 | J10: 0 | K10: 0 | P10: =IFERROR((IF($P$5=$P$1,VLOOKUP(C10,'N1'!$C$7:$Q$26,5,FALSE),IF(ELL!$P$5=ELL!$Q$1,VLOOKUP(ELL!C10,'N1'!$C$7:$Q$26,9,FALSE),IF(ELL!$P$5=ELL!$R$1,VLOOKUP(ELL!C10,'N1'!$C$7:$Q$26,15,FALSE),IF(ELL!$P$5=ELL!$S$1,VLOOKUP(ELL!C10,'N1'!$C$7:$S$26,17,FALSE),"Elegir Metodo"))))),"0") -> 0 | Q10: =IFERROR(((O10/50)^P10)*((IF($Q$5=$U$1,864,'Rot. Not'!$E$5))*M10),"0") -> 0 | R10: =IFERROR(((O10/50)^P10)*((IF($R$5=$U$1,307,'Rot. Not'!$E$10))*N10),"0") -> 0 | S10: 0 | X10: =IFERROR((IF($X$5=$P$1,VLOOKUP(C10,'N1'!$C$7:$Q$26,5,FALSE),IF(ELL!$X$5=ELL!$Q$1,VLOOKUP(ELL!C10,'N1'!$C$7:$Q$26,9,FALSE),IF(ELL!$X$5=ELL!$R$1,VLOOKUP(ELL!C10,'N1'!$C$7:$Q$26,15,FALSE),IF(ELL!$X$5=ELL!$S$1,VLOOKUP(ELL!C10,'N1'!$C$7:$S$26,17,FALSE),"Elegir Metodo"))))),"0") -> 0 | Y10: 0 | Z10: 0 | AA10: 0 | AC10: 0 | AF10: 0 | AG10: 0 | AH10: 0 | AI10: 0 | AJ10: 0 | AK10: 0 | AL10: 0 | AM10: 0 | AN10: 0 | AO10: 0 | AP10: 0 | AQ10: 0 | AR10: 0 | AS10: 0 | AT10: 0 | AU10: 0 | AW10: 0 | AX10: 0 | AY10: 0 | AZ10: 0 | BA10: 0 | BB10: 0 | BC10: 0 | BD10: 0 | BE10: 0 | BF10: 0 | BG10: 0 | BH10: 0 | BI10: 0 | BJ10: 0 | BK10: 0 | BL10: 0 | BN10: 0 | BP10: 0 | BQ10: 0 | BR10: 0 | BS10: 0 | BT10: 0 | BU10: 0 | BV10: 0 | BW10: 0 | BX10: 0 | BY10: 0 | BZ10: 0 | CA10: 0 | CB10: 0 | CC10: 0 | CD10: 0 | CE10: 0 | CG10: 0 | CH10: 0 | CI10: 0 | CJ10: 0 | CK10: 0 | CL10: 0 | CN10: 0 | CO10: 0 | CP10: 0 | CQ10: 0 | CR10: 0 | CS10: 0 | CU10: 0 | CW10: 0 | CX10: 0 | CY10: 0 | DB10: 0 | DC10: 0 | DD10: 0 | DF10: 0 | DG10: 0 | DH10: 0 | DI10: 0 | DJ10: 0 | DK10: 0 | DL10: 0 | DM10: 0 | DN10: 0 | DO10: 0 | DP10: 0 | DQ10: 0 | DR10: 0 | DS10: 0 | DU10: 0 | DV10: 0 | DW10: 0 | DX10: 0 | DY10: 0 | DZ10: 0 | EA10: 0 | EB10: 0 | EC10: 0 | ED10: 0 | EE10: 0 | EF10: 0 | EG10: 0 | EH10: 0 | EJ10: 0 | EL10: 0 | EM10: 0 | EN10: 0 | EO10: 0 | EP10: 0 | EQ10: 0 | ER10: 0 | ES10: 0 | ET10: 0 | EU10: 0 | EV10: 0 | EW10: 0 | EX10: 0 | EY10: 0 | FA10: 0 | FB10: 0 | FC10: 0 | FD10: 0 | FF10: 0 | FH10: 0 | FJ10: 0 | FK10: 0 | FL10: 0 | FM10: 0 | FO10: 0 | FP10: 0 | FQ10: 0 | FR10: 0 | FS10: 0 | FT10: 0 | FU10: 0 | FV10: 0 | FW10: 0 | FX10: 0 | FY10: 0 | FZ10: 0 | GA10: 0 | GB10: 0 | GC10: 0 | GD10: 0 | GE10: 0 | GF10: 0 | GG10: 0 | GH10: 0 | GI10: 0
E11: =IFERROR((IF($E$5=$F$1,VLOOKUP(C11,NRR!$C$9:$Y$28,3,FALSE),IF(ELL!$E$5=ELL!$G$1,VLOOKUP(C11,NRR!$C$9:$Y$28,7,FALSE),IF(ELL!$E$5=ELL!$H$1,VLOOKUP(C11,NRR!$C$9:$Y$28,19,FALSE),IF(ELL!$E$5=ELL!$I$1,VLOOKUP(C11,NRR!$C$9:$Y$28,22,FALSE),"Elegir Metodo"))))),"0") -> 0 | G11: =Costes!$C$3*ELL!F11 -> 0 | H11: =+Costes!$C$2 -> 0.06 | I11: 0 | J11: 0 | K11: 0 | P11: =IFERROR((IF($P$5=$P$1,VLOOKUP(C11,'N1'!$C$7:$Q$26,5,FALSE),IF(ELL!$P$5=ELL!$Q$1,VLOOKUP(ELL!C11,'N1'!$C$7:$Q$26,9,FALSE),IF(ELL!$P$5=ELL!$R$1,VLOOKUP(ELL!C11,'N1'!$C$7:$Q$26,15,FALSE),IF(ELL!$P$5=ELL!$S$1,VLOOKUP(ELL!C11,'N1'!$C$7:$S$26,17,FALSE),"Elegir Metodo"))))),"0") -> 0 | Q11: =IFERROR(((O11/50)^P11)*((IF($Q$5=$U$1,864,'Rot. Not'!$E$5))*M11),"0") -> 0 | R11: =IFERROR(((O11/50)^P11)*((IF($R$5=$U$1,307,'Rot. Not'!$E$10))*N11),"0") -> 0 | S11: 0 | X11: =IFERROR((IF($X$5=$P$1,VLOOKUP(C11,'N1'!$C$7:$Q$26,5,FALSE),IF(ELL!$X$5=ELL!$Q$1,VLOOKUP(ELL!C11,'N1'!$C$7:$Q$26,9,FALSE),IF(ELL!$X$5=ELL!$R$1,VLOOKUP(ELL!C11,'N1'!$C$7:$Q$26,15,FALSE),IF(ELL!$X$5=ELL!$S$1,VLOOKUP(ELL!C11,'N1'!$C$7:$S$26,17,FALSE),"Elegir Metodo"))))),"0") -> 0 | Y11: 0 | Z11: 0 | AA11: 0 | AC11: 0 | AF11: 0 | AG11: 0 | AH11: 0 | AI11: 0 | AJ11: 0 | AK11: 0 | AL11: 0 | AM11: 0 | AN11: 0 | AO11: 0 | AP11: 0 | AQ11: 0 | AR11: 0 | AS11: 0 | AT11: 0 | AU11: 0 | AW11: 0 | AX11: 0 | AY11: 0 | AZ11: 0 | BA11: 0 | BB11: 0 | BC11: 0 | BD11: 0 | BE11: 0 | BF11: 0 | BG11: 0 | BH11: 0 | BI11: 0 | BJ11: 0 | BK11: 0 | BL11: 0 | BN11: 0 | BP11: 0 | BQ11: 0 | BR11: 0 | BS11: 0 | BT11: 0 | BU11: 0 | BV11: 0 | BW11: 0 | BX11: 0 | BY11: 0 | BZ11: 0 | CA11: 0 | CB11: 0 | CC11: 0 | CD11: 0 | CE11: 0 | CG11: 0 | CH11: 0 | CI11: 0 | CJ11: 0 | CK11: 0 | CL11: 0 | CN11: 0 | CO11: 0 | CP11: 0 | CQ11: 0 | CR11: 0 | CS11: 0 | CU11: 0 | CW11: 0 | CX11: 0 | CY11: 0 | DB11: 0 | DC11: 0 | DD11: 0 | DF11: 0 | DG11: 0 | DH11: 0 | DI11: 0 | DJ11: 0 | DK11: 0 | DL11: 0 | DM11: 0 | DN11: 0 | DO11: 0 | DP11: 0 | DQ11: 0 | DR11: 0 | DS11: 0 | DU11: 0 | DV11: 0 | DW11: 0 | DX11: 0 | DY11: 0 | DZ11: 0 | EA11: 0 | EB11: 0 | EC11: 0 | ED11: 0 | EE11: 0 | EF11: 0 | EG11: 0 | EH11: 0 | EJ11: 0 | EL11: 0 | EM11: 0 | EN11: 0 | EO11: 0 | EP11: 0 | EQ11: 0 | ER11: 0 | ES11: 0 | ET11: 0 | EU11: 0 | EV11: 0 | EW11: 0 | EX11: 0 | EY11: 0 | FA11: 0 | FB11: 0 | FC11: 0 | FD11: 0 | FF11: 0 | FH11: 0 | FJ11: 0 | FK11: 0 | FL11: 0 | FM11: 0 | FO11: 0 | FP11: 0 | FQ11: 0 | FR11: 0 | FS11: 0 | FT11: 0 | FU11: 0 | FV11: 0 | FW11: 0 | FX11: 0 | FY11: 0 | FZ11: 0 | GA11: 0 | GB11: 0 | GC11: 0 | GD11: 0 | GE11: 0 | GF11: 0 | GG11: 0 | GH11: 0 | GI11: 0
E12: =IFERROR((IF($E$5=$F$1,VLOOKUP(C12,NRR!$C$9:$Y$28,3,FALSE),IF(ELL!$E$5=ELL!$G$1,VLOOKUP(C12,NRR!$C$9:$Y$28,7,FALSE),IF(ELL!$E$5=ELL!$H$1,VLOOKUP(C12,NRR!$C$9:$Y$28,19,FALSE),IF(ELL!$E$5=ELL!$I$1,VLOOKUP(C12,NRR!$C$9:$Y$28,22,FALSE),"Elegir Metodo"))))),"0") -> 0 | G12: =Costes!$C$3*ELL!F12 -> 0 | H12: =+Costes!$C$2 -> 0.06 | I12: 0 | J12: 0 | K12: 0 | P12: =IFERROR((IF($P$5=$P$1,VLOOKUP(C12,'N1'!$C$7:$Q$26,5,FALSE),IF(ELL!$P$5=ELL!$Q$1,VLOOKUP(ELL!C12,'N1'!$C$7:$Q$26,9,FALSE),IF(ELL!$P$5=ELL!$R$1,VLOOKUP(ELL!C12,'N1'!$C$7:$Q$26,15,FALSE),IF(ELL!$P$5=ELL!$S$1,VLOOKUP(ELL!C12,'N1'!$C$7:$S$26,17,FALSE),"Elegir Metodo"))))),"0") -> 0 | Q12: =IFERROR(((O12/50)^P12)*((IF($Q$5=$U$1,864,'Rot. Not'!$E$5))*M12),"0") -> 0 | R12: =IFERROR(((O12/50)^P12)*((IF($R$5=$U$1,307,'Rot. Not'!$E$10))*N12),"0") -> 0 | S12: 0 | X12: =IFERROR((IF($X$5=$P$1,VLOOKUP(C12,'N1'!$C$7:$Q$26,5,FALSE),IF(ELL!$X$5=ELL!$Q$1,VLOOKUP(ELL!C12,'N1'!$C$7:$Q$26,9,FALSE),IF(ELL!$X$5=ELL!$R$1,VLOOKUP(ELL!C12,'N1'!$C$7:$Q$26,15,FALSE),IF(ELL!$X$5=ELL!$S$1,VLOOKUP(ELL!C12,'N1'!$C$7:$S$26,17,FALSE),"Elegir Metodo"))))),"0") -> 0 | Y12: 0 | Z12: 0 | AA12: 0 | AC12: 0 | AF12: 0 | AG12: 0 | AH12: 0 | AI12: 0 | AJ12: 0 | AK12: 0 | AL12: 0 | AM12: 0 | AN12: 0 | AO12: 0 | AP12: 0 | AQ12: 0 | AR12: 0 | AS12: 0 | AT12: 0 | AU12: 0 | AW12: 0 | AX12: 0 | AY12: 0 | AZ12: 0 | BA12: 0 | BB12: 0 | BC12: 0 | BD12: 0 | BE12: 0 | BF12: 0 | BG12: 0 | BH12: 0 | BI12: 0 | BJ12: 0 | BK12: 0 | BL12: 0 | BN12: 0 | BP12: 0 | BQ12: 0 | BR12: 0 | BS12: 0 | BT12: 0 | BU12: 0 | BV12: 0 | BW12: 0 | BX12: 0 | BY12: 0 | BZ12: 0 | CA12: 0 | CB12: 0 | CC12: 0 | CD12: 0 | CE12: 0 | CG12: 0 | CH12: 0 | CI12: 0 | CJ12: 0 | CK12: 0 | CL12: 0 | CN12: 0 | CO12: 0 | CP12: 0 | CQ12: 0 | CR12: 0 | CS12: 0 | CU12: 0 | CW12: 0 | CX12: 0 | CY12: 0 | DB12: 0 | DC12: 0 | DD12: 0 | DF12: 0 | DG12: 0 | DH12: 0 | DI12: 0 | DJ12: 0 | DK12: 0 | DL12: 0 | DM12: 0 | DN12: 0 | DO12: 0 | DP12: 0 | DQ12: 0 | DR12: 0 | DS12: 0 | DU12: 0 | DV12: 0 | DW12: 0 | DX12: 0 | DY12: 0 | DZ12: 0 | EA12: 0 | EB12: 0 | EC12: 0 | ED12: 0 | EE12: 0 | EF12: 0 | EG12: 0 | EH12: 0 | EJ12: 0 | EL12: 0 | EM12: 0 | EN12: 0 | EO12: 0 | EP12: 0 | EQ12: 0 | ER12: 0 | ES12: 0 | ET12: 0 | EU12: 0 | EV12: 0 | EW12: 0 | EX12: 0 | EY12: 0 | FA12: 0 | FB12: 0 | FC12: 0 | FD12: 0 | FF12: 0 | FH12: 0 | FJ12: 0 | FK12: 0 | FL12: 0 | FM12: 0 | FO12: 0 | FP12: 0 | FQ12: 0 | FR12: 0 | FS12: 0 | FT12: 0 | FU12: 0 | FV12: 0 | FW12: 0 | FX12: 0 | FY12: 0 | FZ12: 0 | GA12: 0 | GB12: 0 | GC12: 0 | GD12: 0 | GE12: 0 | GF12: 0 | GG12: 0 | GH12: 0 | GI12: 0
E13: =IFERROR((IF($E$5=$F$1,VLOOKUP(C13,NRR!$C$9:$Y$28,3,FALSE),IF(ELL!$E$5=ELL!$G$1,VLOOKUP(C13,NRR!$C$9:$Y$28,7,FALSE),IF(ELL!$E$5=ELL!$H$1,VLOOKUP(C13,NRR!$C$9:$Y$28,19,FALSE),IF(ELL!$E$5=ELL!$I$1,VLOOKUP(C13,NRR!$C$9:$Y$28,22,FALSE),"Elegir Metodo"))))),"0") -> 0 | G13: =Costes!$C$3*ELL!F13 -> 0 | H13: =+Costes!$C$2 -> 0.06 | I13: 0 | J13: 0 | K13: 0 | P13: =IFERROR((IF($P$5=$P$1,VLOOKUP(C13,'N1'!$C$7:$Q$26,5,FALSE),IF(ELL!$P$5=ELL!$Q$1,VLOOKUP(ELL!C13,'N1'!$C$7:$Q$26,9,FALSE),IF(ELL!$P$5=ELL!$R$1,VLOOKUP(ELL!C13,'N1'!$C$7:$Q$26,15,FALSE),IF(ELL!$P$5=ELL!$S$1,VLOOKUP(ELL!C13,'N1'!$C$7:$S$26,17,FALSE),"Elegir Metodo"))))),"0") -> 0 | Q13: =IFERROR(((O13/50)^P13)*((IF($Q$5=$U$1,864,'Rot. Not'!$E$5))*M13),"0") -> 0 | R13: =IFERROR(((O13/50)^P13)*((IF($R$5=$U$1,307,'Rot. Not'!$E$10))*N13),"0") -> 0 | S13: 0 | X13: =IFERROR((IF($X$5=$P$1,VLOOKUP(C13,'N1'!$C$7:$Q$26,5,FALSE),IF(ELL!$X$5=ELL!$Q$1,VLOOKUP(ELL!C13,'N1'!$C$7:$Q$26,9,FALSE),IF(ELL!$X$5=ELL!$R$1,VLOOKUP(ELL!C13,'N1'!$C$7:$Q$26,15,FALSE),IF(ELL!$X$5=ELL!$S$1,VLOOKUP(ELL!C13,'N1'!$C$7:$S$26,17,FALSE),"Elegir Metodo"))))),"0") -> 0 | Y13: 0 | Z13: 0 | AA13: 0 | AC13: 0 | AF13: 0 | AG13: 0 | AH13: 0 | AI13: 0 | AJ13: 0 | AK13: 0 | AL13: 0 | AM13: 0 | AN13: 0 | AO13: 0 | AP13: 0 | AQ13: 0 | AR13: 0 | AS13: 0 | AT13: 0 | AU13: 0 | AW13: 0 | AX13: 0 | AY13: 0 | AZ13: 0 | BA13: 0 | BB13: 0 | BC13: 0 | BD13: 0 | BE13: 0 | BF13: 0 | BG13: 0 | BH13: 0 | BI13: 0 | BJ13: 0 | BK13: 0 | BL13: 0 | BN13: 0 | BP13: 0 | BQ13: 0 | BR13: 0 | BS13: 0 | BT13: 0 | BU13: 0 | BV13: 0 | BW13: 0 | BX13: 0 | BY13: 0 | BZ13: 0 | CA13: 0 | CB13: 0 | CC13: 0 | CD13: 0 | CE13: 0 | CG13: 0 | CH13: 0 | CI13: 0 | CJ13: 0 | CK13: 0 | CL13: 0 | CN13: 0 | CO13: 0 | CP13: 0 | CQ13: 0 | CR13: 0 | CS13: 0 | CU13: 0 | CW13: 0 | CX13: 0 | CY13: 0 | DB13: 0 | DC13: 0 | DD13: 0 | DF13: 0 | DG13: 0 | DH13: 0 | DI13: 0 | DJ13: 0 | DK13: 0 | DL13: 0 | DM13: 0 | DN13: 0 | DO13: 0 | DP13: 0 | DQ13: 0 | DR13: 0 | DS13: 0 | DU13: 0 | DV13: 0 | DW13: 0 | DX13: 0 | DY13: 0 | DZ13: 0 | EA13: 0 | EB13: 0 | EC13: 0 | ED13: 0 | EE13: 0 | EF13: 0 | EG13: 0 | EH13: 0 | EJ13: 0 | EL13: 0 | EM13: 0 | EN13: 0 | EO13: 0 | EP13: 0 | EQ13: 0 | ER13: 0 | ES13: 0 | ET13: 0 | EU13: 0 | EV13: 0 | EW13: 0 | EX13: 0 | EY13: 0 | FA13: 0 | FB13: 0 | FC13: 0 | FD13: 0 | FF13: 0 | FH13: 0 | FJ13: 0 | FK13: 0 | FL13: 0 | FM13: 0 | FO13: 0 | FP13: 0 | FQ13: 0 | FR13: 0 | FS13: 0 | FT13: 0 | FU13: 0 | FV13: 0 | FW13: 0 | FX13: 0 | FY13: 0 | FZ13: 0 | GA13: 0 | GB13: 0 | GC13: 0 | GD13: 0 | GE13: 0 | GF13: 0 | GG13: 0 | GH13: 0 | GI13: 0
E14: =IFERROR((IF($E$5=$F$1,VLOOKUP(C14,NRR!$C$9:$Y$28,3,FALSE),IF(ELL!$E$5=ELL!$G$1,VLOOKUP(C14,NRR!$C$9:$Y$28,7,FALSE),IF(ELL!$E$5=ELL!$H$1,VLOOKUP(C14,NRR!$C$9:$Y$28,19,FALSE),IF(ELL!$E$5=ELL!$I$1,VLOOKUP(C14,NRR!$C$9:$Y$28,22,FALSE),"Elegir Metodo"))))),"0") -> 0 | G14: =Costes!$C$3*ELL!F14 -> 0 | H14: =+Costes!$C$2 -> 0.06 | I14: 0 | J14: 0 | K14: 0 | P14: =IFERROR((IF($P$5=$P$1,VLOOKUP(C14,'N1'!$C$7:$Q$26,5,FALSE),IF(ELL!$P$5=ELL!$Q$1,VLOOKUP(ELL!C14,'N1'!$C$7:$Q$26,9,FALSE),IF(ELL!$P$5=ELL!$R$1,VLOOKUP(ELL!C14,'N1'!$C$7:$Q$26,15,FALSE),IF(ELL!$P$5=ELL!$S$1,VLOOKUP(ELL!C14,'N1'!$C$7:$S$26,17,FALSE),"Elegir Metodo"))))),"0") -> 0 | Q14: =IFERROR(((O14/50)^P14)*((IF($Q$5=$U$1,864,'Rot. Not'!$E$5))*M14),"0") -> 0 | R14: =IFERROR(((O14/50)^P14)*((IF($R$5=$U$1,307,'Rot. Not'!$E$10))*N14),"0") -> 0 | S14: 0 | X14: =IFERROR((IF($X$5=$P$1,VLOOKUP(C14,'N1'!$C$7:$Q$26,5,FALSE),IF(ELL!$X$5=ELL!$Q$1,VLOOKUP(ELL!C14,'N1'!$C$7:$Q$26,9,FALSE),IF(ELL!$X$5=ELL!$R$1,VLOOKUP(ELL!C14,'N1'!$C$7:$Q$26,15,FALSE),IF(ELL!$X$5=ELL!$S$1,VLOOKUP(ELL!C14,'N1'!$C$7:$S$26,17,FALSE),"Elegir Metodo"))))),"0") -> 0 | Y14: 0 | Z14: 0 | AA14: 0 | AC14: 0 | AF14: 0 | AG14: 0 | AH14: 0 | AI14: 0 | AJ14: 0 | AK14: 0 | AL14: 0 | AM14: 0 | AN14: 0 | AO14: 0 | AP14: 0 | AQ14: 0 | AR14: 0 | AS14: 0 | AT14: 0 | AU14: 0 | AW14: 0 | AX14: 0 | AY14: 0 | AZ14: 0 | BA14: 0 | BB14: 0 | BC14: 0 | BD14: 0 | BE14: 0 | BF14: 0 | BG14: 0 | BH14: 0 | BI14: 0 | BJ14: 0 | BK14: 0 | BL14: 0 | BN14: 0 | BP14: 0 | BQ14: 0 | BR14: 0 | BS14: 0 | BT14: 0 | BU14: 0 | BV14: 0 | BW14: 0 | BX14: 0 | BY14: 0 | BZ14: 0 | CA14: 0 | CB14: 0 | CC14: 0 | CD14: 0 | CE14: 0 | CG14: 0 | CH14: 0 | CI14: 0 | CJ14: 0 | CK14: 0 | CL14: 0 | CN14: 0 | CO14: 0 | CP14: 0 | CQ14: 0 | CR14: 0 | CS14: 0 | CU14: 0 | CW14: 0 | CX14: 0 | CY14: 0 | DB14: 0 | DC14: 0 | DD14: 0 | DF14: 0 | DG14: 0 | DH14: 0 | DI14: 0 | DJ14: 0 | DK14: 0 | DL14: 0 | DM14: 0 | DN14: 0 | DO14: 0 | DP14: 0 | DQ14: 0 | DR14: 0 | DS14: 0 | DU14: 0 | DV14: 0 | DW14: 0 | DX14: 0 | DY14: 0 | DZ14: 0 | EA14: 0 | EB14: 0 | EC14: 0 | ED14: 0 | EE14: 0 | EF14: 0 | EG14: 0 | EH14: 0 | EJ14: 0 | EL14: 0 | EM14: 0 | EN14: 0 | EO14: 0 | EP14: 0 | EQ14: 0 | ER14: 0 | ES14: 0 | ET14: 0 | EU14: 0 | EV14: 0 | EW14: 0 | EX14: 0 | EY14: 0 | FA14: 0 | FB14: 0 | FC14: 0 | FD14: 0 | FF14: 0 | FH14: 0 | FJ14: 0 | FK14: 0 | FL14: 0 | FM14: 0 | FO14: 0 | FP14: 0 | FQ14: 0 | FR14: 0 | FS14: 0 | FT14: 0 | FU14: 0 | FV14: 0 | FW14: 0 | FX14: 0 | FY14: 0 | FZ14: 0 | GA14: 0 | GB14: 0 | GC14: 0 | GD14: 0 | GE14: 0 | GF14: 0 | GG14: 0 | GH14: 0 | GI14: 0
E15: =IFERROR((IF($E$5=$F$1,VLOOKUP(C15,NRR!$C$9:$Y$28,3,FALSE),IF(ELL!$E$5=ELL!$G$1,VLOOKUP(C15,NRR!$C$9:$Y$28,7,FALSE),IF(ELL!$E$5=ELL!$H$1,VLOOKUP(C15,NRR!$C$9:$Y$28,19,FALSE),IF(ELL!$E$5=ELL!$I$1,VLOOKUP(C15,NRR!$C$9:$Y$28,22,FALSE),"Elegir Metodo"))))),"0") -> 0 | G15: =Costes!$C$3*ELL!F15 -> 0 | H15: =+Costes!$C$2 -> 0.06 | I15: 0 | J15: 0 | K15: 0 | P15: =IFERROR((IF($P$5=$P$1,VLOOKUP(C15,'N1'!$C$7:$Q$26,5,FALSE),IF(ELL!$P$5=ELL!$Q$1,VLOOKUP(ELL!C15,'N1'!$C$7:$Q$26,9,FALSE),IF(ELL!$P$5=ELL!$R$1,VLOOKUP(ELL!C15,'N1'!$C$7:$Q$26,15,FALSE),IF(ELL!$P$5=ELL!$S$1,VLOOKUP(ELL!C15,'N1'!$C$7:$S$26,17,FALSE),"Elegir Metodo"))))),"0") -> 0 | Q15: =IFERROR(((O15/50)^P15)*((IF($Q$5=$U$1,864,'Rot. Not'!$E$5))*M15),"0") -> 0 | R15: =IFERROR(((O15/50)^P15)*((IF($R$5=$U$1,307,'Rot. Not'!$E$10))*N15),"0") -> 0 | S15: 0 | X15: =IFERROR((IF($X$5=$P$1,VLOOKUP(C15,'N1'!$C$7:$Q$26,5,FALSE),IF(ELL!$X$5=ELL!$Q$1,VLOOKUP(ELL!C15,'N1'!$C$7:$Q$26,9,FALSE),IF(ELL!$X$5=ELL!$R$1,VLOOKUP(ELL!C15,'N1'!$C$7:$Q$26,15,FALSE),IF(ELL!$X$5=ELL!$S$1,VLOOKUP(ELL!C15,'N1'!$C$7:$S$26,17,FALSE),"Elegir Metodo"))))),"0") -> 0 | Y15: 0 | Z15: 0 | AA15: 0 | AC15: 0 | AF15: 0 | AG15: 0 | AH15: 0 | AI15: 0 | AJ15: 0 | AK15: 0 | AL15: 0 | AM15: 0 | AN15: 0 | AO15: 0 | AP15: 0 | AQ15: 0 | AR15: 0 | AS15: 0 | AT15: 0 | AU15: 0 | AW15: 0 | AX15: 0 | AY15: 0 | AZ15: 0 | BA15: 0 | BB15: 0 | BC15: 0 | BD15: 0 | BE15: 0 | BF15: 0 | BG15: 0 | BH15: 0 | BI15: 0 | BJ15: 0 | BK15: 0 | BL15: 0 | BN15: 0 | BP15: 0 | BQ15: 0 | BR15: 0 | BS15: 0 | BT15: 0 | BU15: 0 | BV15: 0 | BW15: 0 | BX15: 0 | BY15: 0 | BZ15: 0 | CA15: 0 | CB15: 0 | CC15: 0 | CD15: 0 | CE15: 0 | CG15: 0 | CH15: 0 | CI15: 0 | CJ15: 0 | CK15: 0 | CL15: 0 | CN15: 0 | CO15: 0 | CP15: 0 | CQ15: 0 | CR15: 0 | CS15: 0 | CU15: 0 | CW15: 0 | CX15: 0 | CY15: 0 | DB15: 0 | DC15: 0 | DD15: 0 | DF15: 0 | DG15: 0 | DH15: 0 | DI15: 0 | DJ15: 0 | DK15: 0 | DL15: 0 | DM15: 0 | DN15: 0 | DO15: 0 | DP15: 0 | DQ15: 0 | DR15: 0 | DS15: 0 | DU15: 0 | DV15: 0 | DW15: 0 | DX15: 0 | DY15: 0 | DZ15: 0 | EA15: 0 | EB15: 0 | EC15: 0 | ED15: 0 | EE15: 0 | EF15: 0 | EG15: 0 | EH15: 0 | EJ15: 0 | EL15: 0 | EM15: 0 | EN15: 0 | EO15: 0 | EP15: 0 | EQ15: 0 | ER15: 0 | ES15: 0 | ET15: 0 | EU15: 0 | EV15: 0 | EW15: 0 | EX15: 0 | EY15: 0 | FA15: 0 | FB15: 0 | FC15: 0 | FD15: 0 | FF15: 0 | FH15: 0 | FJ15: 0 | FK15: 0 | FL15: 0 | FM15: 0 | FO15: 0 | FP15: 0 | FQ15: 0 | FR15: 0 | FS15: 0 | FT15: 0 | FU15: 0 | FV15: 0 | FW15: 0 | FX15: 0 | FY15: 0 | FZ15: 0 | GA15: 0 | GB15: 0 | GC15: 0 | GD15: 0 | GE15: 0 | GF15: 0 | GG15: 0 | GH15: 0 | GI15: 0
E16: =IFERROR((IF($E$5=$F$1,VLOOKUP(C16,NRR!$C$9:$Y$28,3,FALSE),IF(ELL!$E$5=ELL!$G$1,VLOOKUP(C16,NRR!$C$9:$Y$28,7,FALSE),IF(ELL!$E$5=ELL!$H$1,VLOOKUP(C16,NRR!$C$9:$Y$28,19,FALSE),IF(ELL!$E$5=ELL!$I$1,VLOOKUP(C16,NRR!$C$9:$Y$28,22,FALSE),"Elegir Metodo"))))),"0") -> 0 | G16: =Costes!$C$3*ELL!F16 -> 0 | H16: =+Costes!$C$2 -> 0.06 | I16: 0 | J16: 0 | K16: 0 | P16: =IFERROR((IF($P$5=$P$1,VLOOKUP(C16,'N1'!$C$7:$Q$26,5,FALSE),IF(ELL!$P$5=ELL!$Q$1,VLOOKUP(ELL!C16,'N1'!$C$7:$Q$26,9,FALSE),IF(ELL!$P$5=ELL!$R$1,VLOOKUP(ELL!C16,'N1'!$C$7:$Q$26,15,FALSE),IF(ELL!$P$5=ELL!$S$1,VLOOKUP(ELL!C16,'N1'!$C$7:$S$26,17,FALSE),"Elegir Metodo"))))),"0") -> 0 | Q16: =IFERROR(((O16/50)^P16)*((IF($Q$5=$U$1,864,'Rot. Not'!$E$5))*M16),"0") -> 0 | R16: =IFERROR(((O16/50)^P16)*((IF($R$5=$U$1,307,'Rot. Not'!$E$10))*N16),"0") -> 0 | S16: 0 | X16: =IFERROR((IF($X$5=$P$1,VLOOKUP(C16,'N1'!$C$7:$Q$26,5,FALSE),IF(ELL!$X$5=ELL!$Q$1,VLOOKUP(ELL!C16,'N1'!$C$7:$Q$26,9,FALSE),IF(ELL!$X$5=ELL!$R$1,VLOOKUP(ELL!C16,'N1'!$C$7:$Q$26,15,FALSE),IF(ELL!$X$5=ELL!$S$1,VLOOKUP(ELL!C16,'N1'!$C$7:$S$26,17,FALSE),"Elegir Metodo"))))),"0") -> 0 | Y16: 0 | Z16: 0 | AA16: 0 | AC16: 0 | AF16: 0 | AG16: 0 | AH16: 0 | AI16: 0 | AJ16: 0 | AK16: 0 | AL16: 0 | AM16: 0 | AN16: 0 | AO16: 0 | AP16: 0 | AQ16: 0 | AR16: 0 | AS16: 0 | AT16: 0 | AU16: 0 | AW16: 0 | AX16: 0 | AY16: 0 | AZ16: 0 | BA16: 0 | BB16: 0 | BC16: 0 | BD16: 0 | BE16: 0 | BF16: 0 | BG16: 0 | BH16: 0 | BI16: 0 | BJ16: 0 | BK16: 0 | BL16: 0 | BN16: 0 | BP16: 0 | BQ16: 0 | BR16: 0 | BS16: 0 | BT16: 0 | BU16: 0 | BV16: 0 | BW16: 0 | BX16: 0 | BY16: 0 | BZ16: 0 | CA16: 0 | CB16: 0 | CC16: 0 | CD16: 0 | CE16: 0 | CG16: 0 | CH16: 0 | CI16: 0 | CJ16: 0 | CK16: 0 | CL16: 0 | CN16: 0 | CO16: 0 | CP16: 0 | CQ16: 0 | CR16: 0 | CS16: 0 | CU16: 0 | CW16: 0 | CX16: 0 | CY16: 0 | DB16: 0 | DC16: 0 | DD16: 0 | DF16: 0 | DG16: 0 | DH16: 0 | DI16: 0 | DJ16: 0 | DK16: 0 | DL16: 0 | DM16: 0 | DN16: 0 | DO16: 0 | DP16: 0 | DQ16: 0 | DR16: 0 | DS16: 0 | DU16: 0 | DV16: 0 | DW16: 0 | DX16: 0 | DY16: 0 | DZ16: 0 | EA16: 0 | EB16: 0 | EC16: 0 | ED16: 0 | EE16: 0 | EF16: 0 | EG16: 0 | EH16: 0 | EJ16: 0 | EL16: 0 | EM16: 0 | EN16: 0 | EO16: 0 | EP16: 0 | EQ16: 0 | ER16: 0 | ES16: 0 | ET16: 0 | EU16: 0 | EV16: 0 | EW16: 0 | EX16: 0 | EY16: 0 | FA16: 0 | FB16: 0 | FC16: 0 | FD16: 0 | FF16: 0 | FH16: 0 | FJ16: 0 | FK16: 0 | FL16: 0 | FM16: 0 | FO16: 0 | FP16: 0 | FQ16: 0 | FR16: 0 | FS16: 0 | FT16: 0 | FU16: 0 | FV16: 0 | FW16: 0 | FX16: 0 | FY16: 0 | FZ16: 0 | GA16: 0 | GB16: 0 | GC16: 0 | GD16: 0 | GE16: 0 | GF16: 0 | GG16: 0 | GH16: 0 | GI16: 0
E17: =IFERROR((IF($E$5=$F$1,VLOOKUP(C17,NRR!$C$9:$Y$28,3,FALSE),IF(ELL!$E$5=ELL!$G$1,VLOOKUP(C17,NRR!$C$9:$Y$28,7,FALSE),IF(ELL!$E$5=ELL!$H$1,VLOOKUP(C17,NRR!$C$9:$Y$28,19,FALSE),IF(ELL!$E$5=ELL!$I$1,VLOOKUP(C17,NRR!$C$9:$Y$28,22,FALSE),"Elegir Metodo"))))),"0") -> 0 | G17: =Costes!$C$3*ELL!F17 -> 0 | H17: =+Costes!$C$2 -> 0.06 | I17: 0 | J17: 0 | K17: 0 | P17: =IFERROR((IF($P$5=$P$1,VLOOKUP(C17,'N1'!$C$7:$Q$26,5,FALSE),IF(ELL!$P$5=ELL!$Q$1,VLOOKUP(ELL!C17,'N1'!$C$7:$Q$26,9,FALSE),IF(ELL!$P$5=ELL!$R$1,VLOOKUP(ELL!C17,'N1'!$C$7:$Q$26,15,FALSE),IF(ELL!$P$5=ELL!$S$1,VLOOKUP(ELL!C17,'N1'!$C$7:$S$26,17,FALSE),"Elegir Metodo"))))),"0") -> 0 | Q17: =IFERROR(((O17/50)^P17)*((IF($Q$5=$U$1,864,'Rot. Not'!$E$5))*M17),"0") -> 0 | R17: =IFERROR(((O17/50)^P17)*((IF($R$5=$U$1,307,'Rot. Not'!$E$10))*N17),"0") -> 0 | S17: 0 | X17: =IFERROR((IF($X$5=$P$1,VLOOKUP(C17,'N1'!$C$7:$Q$26,5,FALSE),IF(ELL!$X$5=ELL!$Q$1,VLOOKUP(ELL!C17,'N1'!$C$7:$Q$26,9,FALSE),IF(ELL!$X$5=ELL!$R$1,VLOOKUP(ELL!C17,'N1'!$C$7:$Q$26,15,FALSE),IF(ELL!$X$5=ELL!$S$1,VLOOKUP(ELL!C17,'N1'!$C$7:$S$26,17,FALSE),"Elegir Metodo"))))),"0") -> 0 | Y17: 0 | Z17: 0 | AA17: 0 | AC17: 0 | AF17: 0 | AG17: 0 | AH17: 0 | AI17: 0 | AJ17: 0 | AK17: 0 | AL17: 0 | AM17: 0 | AN17: 0 | AO17: 0 | AP17: 0 | AQ17: 0 | AR17: 0 | AS17: 0 | AT17: 0 | AU17: 0 | AW17: 0 | AX17: 0 | AY17: 0 | AZ17: 0 | BA17: 0 | BB17: 0 | BC17: 0 | BD17: 0 | BE17: 0 | BF17: 0 | BG17: 0 | BH17: 0 | BI17: 0 | BJ17: 0 | BK17: 0 | BL17: 0 | BN17: 0 | BP17: 0 | BQ17: 0 | BR17: 0 | BS17: 0 | BT17: 0 | BU17: 0 | BV17: 0 | BW17: 0 | BX17: 0 | BY17: 0 | BZ17: 0 | CA17: 0 | CB17: 0 | CC17: 0 | CD17: 0 | CE17: 0 | CG17: 0 | CH17: 0 | CI17: 0 | CJ17: 0 | CK17: 0 | CL17: 0 | CN17: 0 | CO17: 0 | CP17: 0 | CQ17: 0 | CR17: 0 | CS17: 0 | CU17: 0 | CW17: 0 | CX17: 0 | CY17: 0 | DB17: 0 | DC17: 0 | DD17: 0 | DF17: 0 | DG17: 0 | DH17: 0 | DI17: 0 | DJ17: 0 | DK17: 0 | DL17: 0 | DM17: 0 | DN17: 0 | DO17: 0 | DP17: 0 | DQ17: 0 | DR17: 0 | DS17: 0 | DU17: 0 | DV17: 0 | DW17: 0 | DX17: 0 | DY17: 0 | DZ17: 0 | EA17: 0 | EB17: 0 | EC17: 0 | ED17: 0 | EE17: 0 | EF17: 0 | EG17: 0 | EH17: 0 | EJ17: 0 | EL17: 0 | EM17: 0 | EN17: 0 | EO17: 0 | EP17: 0 | EQ17: 0 | ER17: 0 | ES17: 0 | ET17: 0 | EU17: 0 | EV17: 0 | EW17: 0 | EX17: 0 | EY17: 0 | FA17: 0 | FB17: 0 | FC17: 0 | FD17: 0 | FF17: 0 | FH17: 0 | FJ17: 0 | FK17: 0 | FL17: 0 | FM17: 0 | FO17: 0 | FP17: 0 | FQ17: 0 | FR17: 0 | FS17: 0 | FT17: 0 | FU17: 0 | FV17: 0 | FW17: 0 | FX17: 0 | FY17: 0 | FZ17: 0 | GA17: 0 | GB17: 0 | GC17: 0 | GD17: 0 | GE17: 0 | GF17: 0 | GG17: 0 | GH17: 0 | GI17: 0
E18: =IFERROR((IF($E$5=$F$1,VLOOKUP(C18,NRR!$C$9:$Y$28,3,FALSE),IF(ELL!$E$5=ELL!$G$1,VLOOKUP(C18,NRR!$C$9:$Y$28,7,FALSE),IF(ELL!$E$5=ELL!$H$1,VLOOKUP(C18,NRR!$C$9:$Y$28,19,FALSE),IF(ELL!$E$5=ELL!$I$1,VLOOKUP(C18,NRR!$C$9:$Y$28,22,FALSE),"Elegir Metodo"))))),"0") -> 0 | G18: =Costes!$C$3*ELL!F18 -> 0 | H18: =+Costes!$C$2 -> 0.06 | I18: 0 | J18: 0 | K18: 0 | P18: =IFERROR((IF($P$5=$P$1,VLOOKUP(C18,'N1'!$C$7:$Q$26,5,FALSE),IF(ELL!$P$5=ELL!$Q$1,VLOOKUP(ELL!C18,'N1'!$C$7:$Q$26,9,FALSE),IF(ELL!$P$5=ELL!$R$1,VLOOKUP(ELL!C18,'N1'!$C$7:$Q$26,15,FALSE),IF(ELL!$P$5=ELL!$S$1,VLOOKUP(ELL!C18,'N1'!$C$7:$S$26,17,FALSE),"Elegir Metodo"))))),"0") -> 0 | Q18: =IFERROR(((O18/50)^P18)*((IF($Q$5=$U$1,864,'Rot. Not'!$E$5))*M18),"0") -> 0 | R18: =IFERROR(((O18/50)^P18)*((IF($R$5=$U$1,307,'Rot. Not'!$E$10))*N18),"0") -> 0 | S18: 0 | X18: =IFERROR((IF($X$5=$P$1,VLOOKUP(C18,'N1'!$C$7:$Q$26,5,FALSE),IF(ELL!$X$5=ELL!$Q$1,VLOOKUP(ELL!C18,'N1'!$C$7:$Q$26,9,FALSE),IF(ELL!$X$5=ELL!$R$1,VLOOKUP(ELL!C18,'N1'!$C$7:$Q$26,15,FALSE),IF(ELL!$X$5=ELL!$S$1,VLOOKUP(ELL!C18,'N1'!$C$7:$S$26,17,FALSE),"Elegir Metodo"))))),"0") -> 0 | Y18: 0 | Z18: 0 | AA18: 0 | AC18: 0 | AF18: 0 | AG18: 0 | AH18: 0 | AI18: 0 | AJ18: 0 | AK18: 0 | AL18: 0 | AM18: 0 | AN18: 0 | AO18: 0 | AP18: 0 | AQ18: 0 | AR18: 0 | AS18: 0 | AT18: 0 | AU18: 0 | AW18: 0 | AX18: 0 | AY18: 0 | AZ18: 0 | BA18: 0 | BB18: 0 | BC18: 0 | BD18: 0 | BE18: 0 | BF18: 0 | BG18: 0 | BH18: 0 | BI18: 0 | BJ18: 0 | BK18: 0 | BL18: 0 | BN18: 0 | BP18: 0 | BQ18: 0 | BR18: 0 | BS18: 0 | BT18: 0 | BU18: 0 | BV18: 0 | BW18: 0 | BX18: 0 | BY18: 0 | BZ18: 0 | CA18: 0 | CB18: 0 | CC18: 0 | CD18: 0 | CE18: 0 | CG18: 0 | CH18: 0 | CI18: 0 | CJ18: 0 | CK18: 0 | CL18: 0 | CN18: 0 | CO18: 0 | CP18: 0 | CQ18: 0 | CR18: 0 | CS18: 0 | CU18: 0 | CW18: 0 | CX18: 0 | CY18: 0 | DB18: 0 | DC18: 0 | DD18: 0 | DF18: 0 | DG18: 0 | DH18: 0 | DI18: 0 | DJ18: 0 | DK18: 0 | DL18: 0 | DM18: 0 | DN18: 0 | DO18: 0 | DP18: 0 | DQ18: 0 | DR18: 0 | DS18: 0 | DU18: 0 | DV18: 0 | DW18: 0 | DX18: 0 | DY18: 0 | DZ18: 0 | EA18: 0 | EB18: 0 | EC18: 0 | ED18: 0 | EE18: 0 | EF18: 0 | EG18: 0 | EH18: 0 | EJ18: 0 | EL18: 0 | EM18: 0 | EN18: 0 | EO18: 0 | EP18: 0 | EQ18: 0 | ER18: 0 | ES18: 0 | ET18: 0 | EU18: 0 | EV18: 0 | EW18: 0 | EX18: 0 | EY18: 0 | FA18: 0 | FB18: 0 | FC18: 0 | FD18: 0 | FF18: 0 | FH18: 0 | FJ18: 0 | FK18: 0 | FL18: 0 | FM18: 0 | FO18: 0 | FP18: 0 | FQ18: 0 | FR18: 0 | FS18: 0 | FT18: 0 | FU18: 0 | FV18: 0 | FW18: 0 | FX18: 0 | FY18: 0 | FZ18: 0 | GA18: 0 | GB18: 0 | GC18: 0 | GD18: 0 | GE18: 0 | GF18: 0 | GG18: 0 | GH18: 0 | GI18: 0
E19: =IFERROR((IF($E$5=$F$1,VLOOKUP(C19,NRR!$C$9:$Y$28,3,FALSE),IF(ELL!$E$5=ELL!$G$1,VLOOKUP(C19,NRR!$C$9:$Y$28,7,FALSE),IF(ELL!$E$5=ELL!$H$1,VLOOKUP(C19,NRR!$C$9:$Y$28,19,FALSE),IF(ELL!$E$5=ELL!$I$1,VLOOKUP(C19,NRR!$C$9:$Y$28,22,FALSE),"Elegir Metodo"))))),"0") -> 0 | G19: =Costes!$C$3*ELL!F19 -> 0 | H19: =+Costes!$C$2 -> 0.06 | I19: 0 | J19: 0 | K19: 0 | P19: =IFERROR((IF($P$5=$P$1,VLOOKUP(C19,'N1'!$C$7:$Q$26,5,FALSE),IF(ELL!$P$5=ELL!$Q$1,VLOOKUP(ELL!C19,'N1'!$C$7:$Q$26,9,FALSE),IF(ELL!$P$5=ELL!$R$1,VLOOKUP(ELL!C19,'N1'!$C$7:$Q$26,15,FALSE),IF(ELL!$P$5=ELL!$S$1,VLOOKUP(ELL!C19,'N1'!$C$7:$S$26,17,FALSE),"Elegir Metodo"))))),"0") -> 0 | Q19: =IFERROR(((O19/50)^P19)*((IF($Q$5=$U$1,864,'Rot. Not'!$E$5))*M19),"0") -> 0 | R19: =IFERROR(((O19/50)^P19)*((IF($R$5=$U$1,307,'Rot. Not'!$E$10))*N19),"0") -> 0 | S19: 0 | X19: =IFERROR((IF($X$5=$P$1,VLOOKUP(C19,'N1'!$C$7:$Q$26,5,FALSE),IF(ELL!$X$5=ELL!$Q$1,VLOOKUP(ELL!C19,'N1'!$C$7:$Q$26,9,FALSE),IF(ELL!$X$5=ELL!$R$1,VLOOKUP(ELL!C19,'N1'!$C$7:$Q$26,15,FALSE),IF(ELL!$X$5=ELL!$S$1,VLOOKUP(ELL!C19,'N1'!$C$7:$S$26,17,FALSE),"Elegir Metodo"))))),"0") -> 0 | Y19: 0 | Z19: 0 | AA19: 0 | AC19: 0 | AF19: 0 | AG19: 0 | AH19: 0 | AI19: 0 | AJ19: 0 | AK19: 0 | AL19: 0 | AM19: 0 | AN19: 0 | AO19: 0 | AP19: 0 | AQ19: 0 | AR19: 0 | AS19: 0 | AT19: 0 | AU19: 0 | AW19: 0 | AX19: 0 | AY19: 0 | AZ19: 0 | BA19: 0 | BB19: 0 | BC19: 0 | BD19: 0 | BE19: 0 | BF19: 0 | BG19: 0 | BH19: 0 | BI19: 0 | BJ19: 0 | BK19: 0 | BL19: 0 | BN19: 0 | BP19: 0 | BQ19: 0 | BR19: 0 | BS19: 0 | BT19: 0 | BU19: 0 | BV19: 0 | BW19: 0 | BX19: 0 | BY19: 0 | BZ19: 0 | CA19: 0 | CB19: 0 | CC19: 0 | CD19: 0 | CE19: 0 | CG19: 0 | CH19: 0 | CI19: 0 | CJ19: 0 | CK19: 0 | CL19: 0 | CN19: 0 | CO19: 0 | CP19: 0 | CQ19: 0 | CR19: 0 | CS19: 0 | CU19: 0 | CW19: 0 | CX19: 0 | CY19: 0 | DB19: 0 | DC19: 0 | DD19: 0 | DF19: 0 | DG19: 0 | DH19: 0 | DI19: 0 | DJ19: 0 | DK19: 0 | DL19: 0 | DM19: 0 | DN19: 0 | DO19: 0 | DP19: 0 | DQ19: 0 | DR19: 0 | DS19: 0 | DU19: 0 | DV19: 0 | DW19: 0 | DX19: 0 | DY19: 0 | DZ19: 0 | EA19: 0 | EB19: 0 | EC19: 0 | ED19: 0 | EE19: 0 | EF19: 0 | EG19: 0 | EH19: 0 | EJ19: 0 | EL19: 0 | EM19: 0 | EN19: 0 | EO19: 0 | EP19: 0 | EQ19: 0 | ER19: 0 | ES19: 0 | ET19: 0 | EU19: 0 | EV19: 0 | EW19: 0 | EX19: 0 | EY19: 0 | FA19: 0 | FB19: 0 | FC19: 0 | FD19: 0 | FF19: 0 | FH19: 0 | FJ19: 0 | FK19: 0 | FL19: 0 | FM19: 0 | FO19: 0 | FP19: 0 | FQ19: 0 | FR19: 0 | FS19: 0 | FT19: 0 | FU19: 0 | FV19: 0 | FW19: 0 | FX19: 0 | FY19: 0 | FZ19: 0 | GA19: 0 | GB19: 0 | GC19: 0 | GD19: 0 | GE19: 0 | GF19: 0 | GG19: 0 | GH19: 0 | GI19: 0
E20: =IFERROR((IF($E$5=$F$1,VLOOKUP(C20,NRR!$C$9:$Y$28,3,FALSE),IF(ELL!$E$5=ELL!$G$1,VLOOKUP(C20,NRR!$C$9:$Y$28,7,FALSE),IF(ELL!$E$5=ELL!$H$1,VLOOKUP(C20,NRR!$C$9:$Y$28,19,FALSE),IF(ELL!$E$5=ELL!$I$1,VLOOKUP(C20,NRR!$C$9:$Y$28,22,FALSE),"Elegir Metodo"))))),"0") -> 0 | G20: =Costes!$C$3*ELL!F20 -> 0 | H20: =+Costes!$C$2 -> 0.06 | I20: 0 | J20: 0 | K20: 0 | P20: =IFERROR((IF($P$5=$P$1,VLOOKUP(C20,'N1'!$C$7:$Q$26,5,FALSE),IF(ELL!$P$5=ELL!$Q$1,VLOOKUP(ELL!C20,'N1'!$C$7:$Q$26,9,FALSE),IF(ELL!$P$5=ELL!$R$1,VLOOKUP(ELL!C20,'N1'!$C$7:$Q$26,15,FALSE),IF(ELL!$P$5=ELL!$S$1,VLOOKUP(ELL!C20,'N1'!$C$7:$S$26,17,FALSE),"Elegir Metodo"))))),"0") -> 0 | Q20: =IFERROR(((O20/50)^P20)*((IF($Q$5=$U$1,864,'Rot. Not'!$E$5))*M20),"0") -> 0 | R20: =IFERROR(((O20/50)^P20)*((IF($R$5=$U$1,307,'Rot. Not'!$E$10))*N20),"0") -> 0 | S20: 0 | X20: =IFERROR((IF($X$5=$P$1,VLOOKUP(C20,'N1'!$C$7:$Q$26,5,FALSE),IF(ELL!$X$5=ELL!$Q$1,VLOOKUP(ELL!C20,'N1'!$C$7:$Q$26,9,FALSE),IF(ELL!$X$5=ELL!$R$1,VLOOKUP(ELL!C20,'N1'!$C$7:$Q$26,15,FALSE),IF(ELL!$X$5=ELL!$S$1,VLOOKUP(ELL!C20,'N1'!$C$7:$S$26,17,FALSE),"Elegir Metodo"))))),"0") -> 0 | Y20: 0 | Z20: 0 | AA20: 0 | AC20: 0 | AF20: 0 | AG20: 0 | AH20: 0 | AI20: 0 | AJ20: 0 | AK20: 0 | AL20: 0 | AM20: 0 | AN20: 0 | AO20: 0 | AP20: 0 | AQ20: 0 | AR20: 0 | AS20: 0 | AT20: 0 | AU20: 0 | AW20: 0 | AX20: 0 | AY20: 0 | AZ20: 0 | BA20: 0 | BB20: 0 | BC20: 0 | BD20: 0 | BE20: 0 | BF20: 0 | BG20: 0 | BH20: 0 | BI20: 0 | BJ20: 0 | BK20: 0 | BL20: 0 | BN20: 0 | BP20: 0 | BQ20: 0 | BR20: 0 | BS20: 0 | BT20: 0 | BU20: 0 | BV20: 0 | BW20: 0 | BX20: 0 | BY20: 0 | BZ20: 0 | CA20: 0 | CB20: 0 | CC20: 0 | CD20: 0 | CE20: 0 | CG20: 0 | CH20: 0 | CI20: 0 | CJ20: 0 | CK20: 0 | CL20: 0 | CN20: 0 | CO20: 0 | CP20: 0 | CQ20: 0 | CR20: 0 | CS20: 0 | CU20: 0 | CW20: 0 | CX20: 0 | CY20: 0 | DB20: 0 | DC20: 0 | DD20: 0 | DF20: 0 | DG20: 0 | DH20: 0 | DI20: 0 | DJ20: 0 | DK20: 0 | DL20: 0 | DM20: 0 | DN20: 0 | DO20: 0 | DP20: 0 | DQ20: 0 | DR20: 0 | DS20: 0 | DU20: 0 | DV20: 0 | DW20: 0 | DX20: 0 | DY20: 0 | DZ20: 0 | EA20: 0 | EB20: 0 | EC20: 0 | ED20: 0 | EE20: 0 | EF20: 0 | EG20: 0 | EH20: 0 | EJ20: 0 | EL20: 0 | EM20: 0 | EN20: 0 | EO20: 0 | EP20: 0 | EQ20: 0 | ER20: 0 | ES20: 0 | ET20: 0 | EU20: 0 | EV20: 0 | EW20: 0 | EX20: 0 | EY20: 0 | FA20: 0 | FB20: 0 | FC20: 0 | FD20: 0 | FF20: 0 | FH20: 0 | FJ20: 0 | FK20: 0 | FL20: 0 | FM20: 0 | FO20: 0 | FP20: 0 | FQ20: 0 | FR20: 0 | FS20: 0 | FT20: 0 | FU20: 0 | FV20: 0 | FW20: 0 | FX20: 0 | FY20: 0 | FZ20: 0 | GA20: 0 | GB20: 0 | GC20: 0 | GD20: 0 | GE20: 0 | GF20: 0 | GG20: 0 | GH20: 0 | GI20: 0
E21: =IFERROR((IF($E$5=$F$1,VLOOKUP(C21,NRR!$C$9:$Y$28,3,FALSE),IF(ELL!$E$5=ELL!$G$1,VLOOKUP(C21,NRR!$C$9:$Y$28,7,FALSE),IF(ELL!$E$5=ELL!$H$1,VLOOKUP(C21,NRR!$C$9:$Y$28,19,FALSE),IF(ELL!$E$5=ELL!$I$1,VLOOKUP(C21,NRR!$C$9:$Y$28,22,FALSE),"Elegir Metodo"))))),"0") -> 0 | G21: =Costes!$C$3*ELL!F21 -> 0 | H21: =+Costes!$C$2 -> 0.06 | I21: 0 | J21: 0 | K21: 0 | P21: =IFERROR((IF($P$5=$P$1,VLOOKUP(C21,'N1'!$C$7:$Q$26,5,FALSE),IF(ELL!$P$5=ELL!$Q$1,VLOOKUP(ELL!C21,'N1'!$C$7:$Q$26,9,FALSE),IF(ELL!$P$5=ELL!$R$1,VLOOKUP(ELL!C21,'N1'!$C$7:$Q$26,15,FALSE),IF(ELL!$P$5=ELL!$S$1,VLOOKUP(ELL!C21,'N1'!$C$7:$S$26,17,FALSE),"Elegir Metodo"))))),"0") -> 0 | Q21: =IFERROR(((O21/50)^P21)*((IF($Q$5=$U$1,864,'Rot. Not'!$E$5))*M21),"0") -> 0 | R21: =IFERROR(((O21/50)^P21)*((IF($R$5=$U$1,307,'Rot. Not'!$E$10))*N21),"0") -> 0 | S21: 0 | X21: =IFERROR((IF($X$5=$P$1,VLOOKUP(C21,'N1'!$C$7:$Q$26,5,FALSE),IF(ELL!$X$5=ELL!$Q$1,VLOOKUP(ELL!C21,'N1'!$C$7:$Q$26,9,FALSE),IF(ELL!$X$5=ELL!$R$1,VLOOKUP(ELL!C21,'N1'!$C$7:$Q$26,15,FALSE),IF(ELL!$X$5=ELL!$S$1,VLOOKUP(ELL!C21,'N1'!$C$7:$S$26,17,FALSE),"Elegir Metodo"))))),"0") -> 0 | Y21: 0 | Z21: 0 | AA21: 0 | AC21: 0 | AF21: 0 | AG21: 0 | AH21: 0 | AI21: 0 | AJ21: 0 | AK21: 0 | AL21: 0 | AM21: 0 | AN21: 0 | AO21: 0 | AP21: 0 | AQ21: 0 | AR21: 0 | AS21: 0 | AT21: 0 | AU21: 0 | AW21: 0 | AX21: 0 | AY21: 0 | AZ21: 0 | BA21: 0 | BB21: 0 | BC21: 0 | BD21: 0 | BE21: 0 | BF21: 0 | BG21: 0 | BH21: 0 | BI21: 0 | BJ21: 0 | BK21: 0 | BL21: 0 | BN21: 0 | BP21: 0 | BQ21: 0 | BR21: 0 | BS21: 0 | BT21: 0 | BU21: 0 | BV21: 0 | BW21: 0 | BX21: 0 | BY21: 0 | BZ21: 0 | CA21: 0 | CB21: 0 | CC21: 0 | CD21: 0 | CE21: 0 | CG21: 0 | CH21: 0 | CI21: 0 | CJ21: 0 | CK21: 0 | CL21: 0 | CN21: 0 | CO21: 0 | CP21: 0 | CQ21: 0 | CR21: 0 | CS21: 0 | CU21: 0 | CW21: 0 | CX21: 0 | CY21: 0 | DB21: 0 | DC21: 0 | DD21: 0 | DF21: 0 | DG21: 0 | DH21: 0 | DI21: 0 | DJ21: 0 | DK21: 0 | DL21: 0 | DM21: 0 | DN21: 0 | DO21: 0 | DP21: 0 | DQ21: 0 | DR21: 0 | DS21: 0 | DU21: 0 | DV21: 0 | DW21: 0 | DX21: 0 | DY21: 0 | DZ21: 0 | EA21: 0 | EB21: 0 | EC21: 0 | ED21: 0 | EE21: 0 | EF21: 0 | EG21: 0 | EH21: 0 | EJ21: 0 | EL21: 0 | EM21: 0 | EN21: 0 | EO21: 0 | EP21: 0 | EQ21: 0 | ER21: 0 | ES21: 0 | ET21: 0 | EU21: 0 | EV21: 0 | EW21: 0 | EX21: 0 | EY21: 0 | FA21: 0 | FB21: 0 | FC21: 0 | FD21: 0 | FF21: 0 | FH21: 0 | FJ21: 0 | FK21: 0 | FL21: 0 | FM21: 0 | FO21: 0 | FP21: 0 | FQ21: 0 | FR21: 0 | FS21: 0 | FT21: 0 | FU21: 0 | FV21: 0 | FW21: 0 | FX21: 0 | FY21: 0 | FZ21: 0 | GA21: 0 | GB21: 0 | GC21: 0 | GD21: 0 | GE21: 0 | GF21: 0 | GG21: 0 | GH21: 0 | GI21: 0
E22: =IFERROR((IF($E$5=$F$1,VLOOKUP(C22,NRR!$C$9:$Y$28,3,FALSE),IF(ELL!$E$5=ELL!$G$1,VLOOKUP(C22,NRR!$C$9:$Y$28,7,FALSE),IF(ELL!$E$5=ELL!$H$1,VLOOKUP(C22,NRR!$C$9:$Y$28,19,FALSE),IF(ELL!$E$5=ELL!$I$1,VLOOKUP(C22,NRR!$C$9:$Y$28,22,FALSE),"Elegir Metodo"))))),"0") -> 0 | G22: =Costes!$C$3*ELL!F22 -> 0 | H22: =+Costes!$C$2 -> 0.06 | I22: 0 | J22: 0 | K22: 0 | P22: =IFERROR((IF($P$5=$P$1,VLOOKUP(C22,'N1'!$C$7:$Q$26,5,FALSE),IF(ELL!$P$5=ELL!$Q$1,VLOOKUP(ELL!C22,'N1'!$C$7:$Q$26,9,FALSE),IF(ELL!$P$5=ELL!$R$1,VLOOKUP(ELL!C22,'N1'!$C$7:$Q$26,15,FALSE),IF(ELL!$P$5=ELL!$S$1,VLOOKUP(ELL!C22,'N1'!$C$7:$S$26,17,FALSE),"Elegir Metodo"))))),"0") -> 0 | Q22: =IFERROR(((O22/50)^P22)*((IF($Q$5=$U$1,864,'Rot. Not'!$E$5))*M22),"0") -> 0 | R22: =IFERROR(((O22/50)^P22)*((IF($R$5=$U$1,307,'Rot. Not'!$E$10))*N22),"0") -> 0 | S22: 0 | X22: =IFERROR((IF($X$5=$P$1,VLOOKUP(C22,'N1'!$C$7:$Q$26,5,FALSE),IF(ELL!$X$5=ELL!$Q$1,VLOOKUP(ELL!C22,'N1'!$C$7:$Q$26,9,FALSE),IF(ELL!$X$5=ELL!$R$1,VLOOKUP(ELL!C22,'N1'!$C$7:$Q$26,15,FALSE),IF(ELL!$X$5=ELL!$S$1,VLOOKUP(ELL!C22,'N1'!$C$7:$S$26,17,FALSE),"Elegir Metodo"))))),"0") -> 0 | Y22: 0 | Z22: 0 | AA22: 0 | AC22: 0 | AF22: 0 | AG22: 0 | AH22: 0 | AI22: 0 | AJ22: 0 | AK22: 0 | AL22: 0 | AM22: 0 | AN22: 0 | AO22: 0 | AP22: 0 | AQ22: 0 | AR22: 0 | AS22: 0 | AT22: 0 | AU22: 0 | AW22: 0 | AX22: 0 | AY22: 0 | AZ22: 0 | BA22: 0 | BB22: 0 | BC22: 0 | BD22: 0 | BE22: 0 | BF22: 0 | BG22: 0 | BH22: 0 | BI22: 0 | BJ22: 0 | BK22: 0 | BL22: 0 | BN22: 0 | BP22: 0 | BQ22: 0 | BR22: 0 | BS22: 0 | BT22: 0 | BU22: 0 | BV22: 0 | BW22: 0 | BX22: 0 | BY22: 0 | BZ22: 0 | CA22: 0 | CB22: 0 | CC22: 0 | CD22: 0 | CE22: 0 | CG22: 0 | CH22: 0 | CI22: 0 | CJ22: 0 | CK22: 0 | CL22: 0 | CN22: 0 | CO22: 0 | CP22: 0 | CQ22: 0 | CR22: 0 | CS22: 0 | CU22: 0 | CW22: 0 | CX22: 0 | CY22: 0 | DB22: 0 | DC22: 0 | DD22: 0 | DF22: 0 | DG22: 0 | DH22: 0 | DI22: 0 | DJ22: 0 | DK22: 0 | DL22: 0 | DM22: 0 | DN22: 0 | DO22: 0 | DP22: 0 | DQ22: 0 | DR22: 0 | DS22: 0 | DU22: 0 | DV22: 0 | DW22: 0 | DX22: 0 | DY22: 0 | DZ22: 0 | EA22: 0 | EB22: 0 | EC22: 0 | ED22: 0 | EE22: 0 | EF22: 0 | EG22: 0 | EH22: 0 | EJ22: 0 | EL22: 0 | EM22: 0 | EN22: 0 | EO22: 0 | EP22: 0 | EQ22: 0 | ER22: 0 | ES22: 0 | ET22: 0 | EU22: 0 | EV22: 0 | EW22: 0 | EX22: 0 | EY22: 0 | FA22: 0 | FB22: 0 | FC22: 0 | FD22: 0 | FF22: 0 | FH22: 0 | FJ22: 0 | FK22: 0 | FL22: 0 | FM22: 0 | FO22: 0 | FP22: 0 | FQ22: 0 | FR22: 0 | FS22: 0 | FT22: 0 | FU22: 0 | FV22: 0 | FW22: 0 | FX22: 0 | FY22: 0 | FZ22: 0 | GA22: 0 | GB22: 0 | GC22: 0 | GD22: 0 | GE22: 0 | GF22: 0 | GG22: 0 | GH22: 0 | GI22: 0
E23: =IFERROR((IF($E$5=$F$1,VLOOKUP(C23,NRR!$C$9:$Y$28,3,FALSE),IF(ELL!$E$5=ELL!$G$1,VLOOKUP(C23,NRR!$C$9:$Y$28,7,FALSE),IF(ELL!$E$5=ELL!$H$1,VLOOKUP(C23,NRR!$C$9:$Y$28,19,FALSE),IF(ELL!$E$5=ELL!$I$1,VLOOKUP(C23,NRR!$C$9:$Y$28,22,FALSE),"Elegir Metodo"))))),"0") -> 0 | G23: =Costes!$C$3*ELL!F23 -> 0 | H23: =+Costes!$C$2 -> 0.06 | I23: 0 | J23: 0 | K23: 0 | P23: =IFERROR((IF($P$5=$P$1,VLOOKUP(C23,'N1'!$C$7:$Q$26,5,FALSE),IF(ELL!$P$5=ELL!$Q$1,VLOOKUP(ELL!C23,'N1'!$C$7:$Q$26,9,FALSE),IF(ELL!$P$5=ELL!$R$1,VLOOKUP(ELL!C23,'N1'!$C$7:$Q$26,15,FALSE),IF(ELL!$P$5=ELL!$S$1,VLOOKUP(ELL!C23,'N1'!$C$7:$S$26,17,FALSE),"Elegir Metodo"))))),"0") -> 0 | Q23: =IFERROR(((O23/50)^P23)*((IF($Q$5=$U$1,864,'Rot. Not'!$E$5))*M23),"0") -> 0 | R23: =IFERROR(((O23/50)^P23)*((IF($R$5=$U$1,307,'Rot. Not'!$E$10))*N23),"0") -> 0 | S23: 0 | X23: =IFERROR((IF($X$5=$P$1,VLOOKUP(C23,'N1'!$C$7:$Q$26,5,FALSE),IF(ELL!$X$5=ELL!$Q$1,VLOOKUP(ELL!C23,'N1'!$C$7:$Q$26,9,FALSE),IF(ELL!$X$5=ELL!$R$1,VLOOKUP(ELL!C23,'N1'!$C$7:$Q$26,15,FALSE),IF(ELL!$X$5=ELL!$S$1,VLOOKUP(ELL!C23,'N1'!$C$7:$S$26,17,FALSE),"Elegir Metodo"))))),"0") -> 0 | Y23: 0 | Z23: 0 | AA23: 0 | AC23: 0 | AF23: 0 | AG23: 0 | AH23: 0 | AI23: 0 | AJ23: 0 | AK23: 0 | AL23: 0 | AM23: 0 | AN23: 0 | AO23: 0 | AP23: 0 | AQ23: 0 | AR23: 0 | AS23: 0 | AT23: 0 | AU23: 0 | AW23: 0 | AX23: 0 | AY23: 0 | AZ23: 0 | BA23: 0 | BB23: 0 | BC23: 0 | BD23: 0 | BE23: 0 | BF23: 0 | BG23: 0 | BH23: 0 | BI23: 0 | BJ23: 0 | BK23: 0 | BL23: 0 | BN23: 0 | BP23: 0 | BQ23: 0 | BR23: 0 | BS23: 0 | BT23: 0 | BU23: 0 | BV23: 0 | BW23: 0 | BX23: 0 | BY23: 0 | BZ23: 0 | CA23: 0 | CB23: 0 | CC23: 0 | CD23: 0 | CE23: 0 | CG23: 0 | CH23: 0 | CI23: 0 | CJ23: 0 | CK23: 0 | CL23: 0 | CN23: 0 | CO23: 0 | CP23: 0 | CQ23: 0 | CR23: 0 | CS23: 0 | CU23: 0 | CW23: 0 | CX23: 0 | CY23: =IFERROR(CL23+CS23+$CU23,"-") -> 0 | DB23: 0 | DC23: 0 | DD23: 0 | DF23: 0 | DG23: 0 | DH23: 0 | DI23: 0 | DJ23: 0 | DK23: 0 | DL23: 0 | DM23: 0 | DN23: 0 | DO23: 0 | DP23: 0 | DQ23: 0 | DR23: 0 | DS23: 0 | DU23: 0 | DV23: 0 | DW23: 0 | DX23: 0 | DY23: 0 | DZ23: 0 | EA23: 0 | EB23: 0 | EC23: 0 | ED23: 0 | EE23: 0 | EF23: 0 | EG23: 0 | EH23: 0 | EJ23: 0 | EL23: 0 | EM23: 0 | EN23: 0 | EO23: 0 | EP23: 0 | EQ23: 0 | ER23: 0 | ES23: 0 | ET23: 0 | EU23: 0 | EV23: 0 | EW23: 0 | EX23: 0 | EY23: 0 | FA23: 0 | FB23: 0 | FC23: 0 | FD23: 0 | FF23: 0 | FH23: 0 | FJ23: 0 | FK23: 0 | FL23: 0 | FM23: 0 | FO23: 0 | FP23: 0 | FQ23: 0 | FR23: 0 | FS23: 0 | FT23: 0 | FU23: 0 | FV23: 0 | FW23: 0 | FX23: 0 | FY23: 0 | FZ23: 0 | GA23: 0 | GB23: 0 | GC23: 0 | GD23: 0 | GE23: 0 | GF23: 0 | GG23: 0 | GH23: 0 | GI23: 0
E24: =IFERROR((IF($E$5=$F$1,VLOOKUP(C24,NRR!$C$9:$Y$28,3,FALSE),IF(ELL!$E$5=ELL!$G$1,VLOOKUP(C24,NRR!$C$9:$Y$28,7,FALSE),IF(ELL!$E$5=ELL!$H$1,VLOOKUP(C24,NRR!$C$9:$Y$28,19,FALSE),IF(ELL!$E$5=ELL!$I$1,VLOOKUP(C24,NRR!$C$9:$Y$28,22,FALSE),"Elegir Metodo"))))),"0") -> 0 | G24: =Costes!$C$3*ELL!F24 -> 0 | H24: =+Costes!$C$2 -> 0.06 | I24: 0 | J24: 0 | K24: 0 | P24: =IFERROR((IF($P$5=$P$1,VLOOKUP(C24,'N1'!$C$7:$Q$26,5,FALSE),IF(ELL!$P$5=ELL!$Q$1,VLOOKUP(ELL!C24,'N1'!$C$7:$Q$26,9,FALSE),IF(ELL!$P$5=ELL!$R$1,VLOOKUP(ELL!C24,'N1'!$C$7:$Q$26,15,FALSE),IF(ELL!$P$5=ELL!$S$1,VLOOKUP(ELL!C24,'N1'!$C$7:$S$26,17,FALSE),"Elegir Metodo"))))),"0") -> 0 | Q24: =IFERROR(((O24/50)^P24)*((IF($Q$5=$U$1,864,'Rot. Not'!$E$5))*M24),"0") -> 0 | R24: =IFERROR(((O24/50)^P24)*((IF($R$5=$U$1,307,'Rot. Not'!$E$10))*N24),"0") -> 0 | S24: 0 | X24: =IFERROR((IF($X$5=$P$1,VLOOKUP(C24,'N1'!$C$7:$Q$26,5,FALSE),IF(ELL!$X$5=ELL!$Q$1,VLOOKUP(ELL!C24,'N1'!$C$7:$Q$26,9,FALSE),IF(ELL!$X$5=ELL!$R$1,VLOOKUP(ELL!C24,'N1'!$C$7:$Q$26,15,FALSE),IF(ELL!$X$5=ELL!$S$1,VLOOKUP(ELL!C24,'N1'!$C$7:$S$26,17,FALSE),"Elegir Metodo"))))),"0") -> 0 | Y24: 0 | Z24: 0 | AA24: 0 | AC24: 0 | AF24: 0 | AG24: 0 | AH24: 0 | AI24: 0 | AJ24: 0 | AK24: 0 | AL24: 0 | AM24: 0 | AN24: 0 | AO24: 0 | AP24: 0 | AQ24: 0 | AR24: 0 | AS24: 0 | AT24: 0 | AU24: 0 | AW24: 0 | AX24: 0 | AY24: 0 | AZ24: 0 | BA24: 0 | BB24: 0 | BC24: 0 | BD24: 0 | BE24: 0 | BF24: 0 | BG24: 0 | BH24: 0 | BI24: 0 | BJ24: 0 | BK24: 0 | BL24: 0 | BN24: 0 | BP24: 0 | BQ24: 0 | BR24: 0 | BS24: 0 | BT24: 0 | BU24: 0 | BV24: 0 | BW24: 0 | BX24: 0 | BY24: 0 | BZ24: 0 | CA24: 0 | CB24: 0 | CC24: 0 | CD24: 0 | CE24: 0 | CG24: 0 | CH24: 0 | CI24: 0 | CJ24: 0 | CK24: 0 | CL24: 0 | CN24: 0 | CO24: 0 | CP24: 0 | CQ24: 0 | CR24: 0 | CS24: 0 | CU24: 0 | CW24: 0 | CX24: 0 | CY24: 0 | DB24: 0 | DC24: 0 | DD24: 0 | DF24: 0 | DG24: 0 | DH24: 0 | DI24: 0 | DJ24: 0 | DK24: 0 | DL24: 0 | DM24: 0 | DN24: 0 | DO24: 0 | DP24: 0 | DQ24: 0 | DR24: 0 | DS24: 0 | DU24: 0 | DV24: 0 | DW24: 0 | DX24: 0 | DY24: 0 | DZ24: 0 | EA24: 0 | EB24: 0 | EC24: 0 | ED24: 0 | EE24: 0 | EF24: 0 | EG24: 0 | EH24: 0 | EJ24: 0 | EL24: 0 | EM24: 0 | EN24: 0 | EO24: 0 | EP24: 0 | EQ24: 0 | ER24: 0 | ES24: 0 | ET24: 0 | EU24: 0 | EV24: 0 | EW24: 0 | EX24: 0 | EY24: 0 | FA24: 0 | FB24: 0 | FC24: 0 | FD24: 0 | FF24: 0 | FH24: 0 | FJ24: 0 | FK24: 0 | FL24: 0 | FM24: 0 | FO24: 0 | FP24: 0 | FQ24: 0 | FR24: 0 | FS24: 0 | FT24: 0 | FU24: 0 | FV24: 0 | FW24: 0 | FX24: 0 | FY24: 0 | FZ24: 0 | GA24: 0 | GB24: 0 | GC24: 0 | GD24: 0 | GE24: 0 | GF24: 0 | GG24: 0 | GH24: 0 | GI24: 0
E25: =IFERROR((IF($E$5=$F$1,VLOOKUP(C25,NRR!$C$9:$Y$28,3,FALSE),IF(ELL!$E$5=ELL!$G$1,VLOOKUP(C25,NRR!$C$9:$Y$28,7,FALSE),IF(ELL!$E$5=ELL!$H$1,VLOOKUP(C25,NRR!$C$9:$Y$28,19,FALSE),IF(ELL!$E$5=ELL!$I$1,VLOOKUP(C25,NRR!$C$9:$Y$28,22,FALSE),"Elegir Metodo"))))),"0") -> 0 | G25: =Costes!$C$3*ELL!F25 -> 0 | H25: =+Costes!$C$2 -> 0.06 | I25: 0 | J25: 0 | K25: 0 | P25: =IFERROR((IF($P$5=$P$1,VLOOKUP(C25,'N1'!$C$7:$Q$26,5,FALSE),IF(ELL!$P$5=ELL!$Q$1,VLOOKUP(ELL!C25,'N1'!$C$7:$Q$26,9,FALSE),IF(ELL!$P$5=ELL!$R$1,VLOOKUP(ELL!C25,'N1'!$C$7:$Q$26,15,FALSE),IF(ELL!$P$5=ELL!$S$1,VLOOKUP(ELL!C25,'N1'!$C$7:$S$26,17,FALSE),"Elegir Metodo"))))),"0") -> 0 | Q25: =IFERROR(((O25/50)^P25)*((IF($Q$5=$U$1,864,'Rot. Not'!$E$5))*M25),"0") -> 0 | R25: =IFERROR(((O25/50)^P25)*((IF($R$5=$U$1,307,'Rot. Not'!$E$10))*N25),"0") -> 0 | S25: 0 | X25: =IFERROR((IF($X$5=$P$1,VLOOKUP(C25,'N1'!$C$7:$Q$26,5,FALSE),IF(ELL!$X$5=ELL!$Q$1,VLOOKUP(ELL!C25,'N1'!$C$7:$Q$26,9,FALSE),IF(ELL!$X$5=ELL!$R$1,VLOOKUP(ELL!C25,'N1'!$C$7:$Q$26,15,FALSE),IF(ELL!$X$5=ELL!$S$1,VLOOKUP(ELL!C25,'N1'!$C$7:$S$26,17,FALSE),"Elegir Metodo"))))),"0") -> 0 | Y25: 0 | Z25: 0 | AA25: 0 | AC25: 0 | AF25: 0 | AG25: 0 | AH25: 0 | AI25: 0 | AJ25: 0 | AK25: 0 | AL25: 0 | AM25: 0 | AN25: 0 | AO25: 0 | AP25: 0 | AQ25: 0 | AR25: 0 | AS25: 0 | AT25: 0 | AU25: 0 | AW25: 0 | AX25: 0 | AY25: 0 | AZ25: 0 | BA25: 0 | BB25: 0 | BC25: 0 | BD25: 0 | BE25: 0 | BF25: 0 | BG25: 0 | BH25: 0 | BI25: 0 | BJ25: 0 | BK25: 0 | BL25: 0 | BN25: 0 | BP25: 0 | BQ25: 0 | BR25: 0 | BS25: 0 | BT25: 0 | BU25: 0 | BV25: 0 | BW25: 0 | BX25: 0 | BY25: 0 | BZ25: 0 | CA25: 0 | CB25: 0 | CC25: 0 | CD25: 0 | CE25: 0 | CG25: 0 | CH25: 0 | CI25: 0 | CJ25: 0 | CK25: 0 | CL25: 0 | CN25: 0 | CO25: 0 | CP25: 0 | CQ25: 0 | CR25: 0 | CS25: 0 | CU25: 0 | CW25: 0 | CX25: 0 | CY25: 0 | DB25: 0 | DC25: 0 | DD25: 0 | DF25: 0 | DG25: 0 | DH25: 0 | DI25: 0 | DJ25: 0 | DK25: 0 | DL25: 0 | DM25: 0 | DN25: 0 | DO25: 0 | DP25: 0 | DQ25: 0 | DR25: 0 | DS25: 0 | DU25: 0 | DV25: 0 | DW25: 0 | DX25: 0 | DY25: 0 | DZ25: 0 | EA25: 0 | EB25: 0 | EC25: 0 | ED25: 0 | EE25: 0 | EF25: 0 | EG25: 0 | EH25: 0 | EJ25: 0 | EL25: 0 | EM25: 0 | EN25: 0 | EO25: 0 | EP25: 0 | EQ25: 0 | ER25: 0 | ES25: 0 | ET25: 0 | EU25: 0 | EV25: 0 | EW25: 0 | EX25: 0 | EY25: 0 | FA25: 0 | FB25: 0 | FC25: 0 | FD25: 0 | FF25: 0 | FH25: 0 | FJ25: 0 | FK25: 0 | FL25: 0 | FM25: 0 | FO25: 0 | FP25: 0 | FQ25: 0 | FR25: 0 | FS25: 0 | FT25: 0 | FU25: 0 | FV25: 0 | FW25: 0 | FX25: 0 | FY25: 0 | FZ25: 0 | GA25: 0 | GB25: 0 | GC25: 0 | GD25: 0 | GE25: 0 | GF25: 0 | GG25: 0 | GH25: 0 | GI25: 0
E26: =IFERROR((IF($E$5=$F$1,VLOOKUP(C26,NRR!$C$9:$Y$28,3,FALSE),IF(ELL!$E$5=ELL!$G$1,VLOOKUP(C26,NRR!$C$9:$Y$28,7,FALSE),IF(ELL!$E$5=ELL!$H$1,VLOOKUP(C26,NRR!$C$9:$Y$28,19,FALSE),IF(ELL!$E$5=ELL!$I$1,VLOOKUP(C26,NRR!$C$9:$Y$28,22,FALSE),"Elegir Metodo"))))),"0") -> 0 | G26: =Costes!$C$3*ELL!F26 -> 0 | H26: =+Costes!$C$2 -> 0.06 | I26: 0 | J26: 0 | K26: 0 | P26: =IFERROR((IF($P$5=$P$1,VLOOKUP(C26,'N1'!$C$7:$Q$26,5,FALSE),IF(ELL!$P$5=ELL!$Q$1,VLOOKUP(ELL!C26,'N1'!$C$7:$Q$26,9,FALSE),IF(ELL!$P$5=ELL!$R$1,VLOOKUP(ELL!C26,'N1'!$C$7:$Q$26,15,FALSE),IF(ELL!$P$5=ELL!$S$1,VLOOKUP(ELL!C26,'N1'!$C$7:$S$26,17,FALSE),"Elegir Metodo"))))),"0") -> 0 | Q26: =IFERROR(((O26/50)^P26)*((IF($Q$5=$U$1,864,'Rot. Not'!$E$5))*M26),"0") -> 0 | R26: =IFERROR(((O26/50)^P26)*((IF($R$5=$U$1,307,'Rot. Not'!$E$10))*N26),"0") -> 0 | S26: 0 | X26: =IFERROR((IF($X$5=$P$1,VLOOKUP(C26,'N1'!$C$7:$Q$26,5,FALSE),IF(ELL!$X$5=ELL!$Q$1,VLOOKUP(ELL!C26,'N1'!$C$7:$Q$26,9,FALSE),IF(ELL!$X$5=ELL!$R$1,VLOOKUP(ELL!C26,'N1'!$C$7:$Q$26,15,FALSE),IF(ELL!$X$5=ELL!$S$1,VLOOKUP(ELL!C26,'N1'!$C$7:$S$26,17,FALSE),"Elegir Metodo"))))),"0") -> 0 | Y26: 0 | Z26: 0 | AA26: 0 | AC26: 0 | AF26: 0 | AG26: 0 | AH26: 0 | AI26: 0 | AJ26: 0 | AK26: 0 | AL26: 0 | AM26: 0 | AN26: 0 | AO26: 0 | AP26: 0 | AQ26: 0 | AR26: 0 | AS26: 0 | AT26: 0 | AU26: 0 | AW26: 0 | AX26: 0 | AY26: 0 | AZ26: 0 | BA26: 0 | BB26: 0 | BC26: 0 | BD26: 0 | BE26: 0 | BF26: 0 | BG26: 0 | BH26: 0 | BI26: 0 | BJ26: 0 | BK26: 0 | BL26: 0 | BN26: 0 | BP26: 0 | BQ26: 0 | BR26: 0 | BS26: 0 | BT26: 0 | BU26: 0 | BV26: 0 | BW26: 0 | BX26: 0 | BY26: 0 | BZ26: 0 | CA26: 0 | CB26: 0 | CC26: 0 | CD26: 0 | CE26: 0 | CG26: 0 | CH26: 0 | CI26: 0 | CJ26: 0 | CK26: 0 | CL26: 0 | CN26: 0 | CO26: 0 | CP26: 0 | CQ26: 0 | CR26: 0 | CS26: 0 | CU26: 0 | CW26: 0 | CX26: 0 | CY26: 0 | DB26: 0 | DC26: 0 | DD26: 0 | DF26: 0 | DG26: 0 | DH26: 0 | DI26: 0 | DJ26: 0 | DK26: 0 | DL26: 0 | DM26: 0 | DN26: 0 | DO26: 0 | DP26: 0 | DQ26: 0 | DR26: 0 | DS26: 0 | DU26: 0 | DV26: 0 | DW26: 0 | DX26: 0 | DY26: 0 | DZ26: 0 | EA26: 0 | EB26: 0 | EC26: 0 | ED26: 0 | EE26: 0 | EF26: 0 | EG26: 0 | EH26: 0 | EJ26: 0 | EL26: 0 | EM26: 0 | EN26: 0 | EO26: 0 | EP26: 0 | EQ26: 0 | ER26: 0 | ES26: 0 | ET26: 0 | EU26: 0 | EV26: 0 | EW26: 0 | EX26: 0 | EY26: 0 | FA26: 0 | FB26: 0 | FC26: 0 | FD26: 0 | FF26: 0 | FH26: 0 | FJ26: 0 | FK26: 0 | FL26: 0 | FM26: 0 | FO26: 0 | FP26: 0 | FQ26: 0 | FR26: 0 | FS26: 0 | FT26: 0 | FU26: 0 | FV26: 0 | FW26: 0 | FX26: 0 | FY26: 0 | FZ26: 0 | GA26: 0 | GB26: 0 | GC26: 0 | GD26: 0 | GE26: 0 | GF26: 0 | GG26: 0 | GH26: 0 | GI26: 0

Sheet N1
E1: Lineal | F1: Aproximacion | G1: Seguridad | H1: Ninguno | M1: 1.2 | N1: 1.5 | O1: 0.5 | P1: 0.7
E3: BASICO | I3: INTERMEDIO | M3: AVANZADO | S3: OTRO METODO
G5: Lineal
B6: Codigo | C6: Sector Analizado / Direccion | E6: % aprox de red rigida | F6: % aprox de red elastica | G6: N1 | I6: Km de red elastica | J6: Km de red rigida | K6: N1 | M6: Km red elastica con diametros menores a 100 mm | N6: Km red elastica con diametros mayores a 100 mm | O6: Km red rigida con diametros menores a 200 mm | P6: Km red rigida con diametros mayores a 200 mm | Q6: N1 | S6: N1
B7: CTC-029 | C7: Brasil - Av. Quito - Calle 22 SO - Tungurahua | G7: =IFERROR((IF(B7=0,"-",(IF($G$5=$E$1,1,IF($G$5=$F$1,(1.5*E7+0.5*F7),IF($G$5=$G$1,1.5,"-")))))),"-") -> 1 | I7: 6.00913 | J7: 6.16404 | K7: =IFERROR(((I7*1.5+J7*0.5)/(I7+J7)),"-") -> 0.9936372366 | M7: 4.69978 | N7: 1.30935 | O7: 4.77938 | P7: 1.38466 | Q7: =IFERROR(((M7*1.2+N7*1.5+O7*0.5+P7*0.7)/(SUM(M7:P7))),"-") -> 0.9005635344
B8: CTC-030 | C8: Calle 22 SO - Av. Quito - Venezuela - Tungurahua | G8: 1 | I8: 4.06446 | J8: 9.04444 | K8: =IFERROR(((I8*1.5+J8*0.5)/(I8+J8)),"-") -> 0.8100534751 | M8: 3.17013 | N8: 0.89433 | O8: 5.16255 | P8: 3.88189 | Q8: =IFERROR(((M8*1.2+N8*1.5+O8*0.5+P8*0.7)/(SUM(M8:P8))),"-") -> 0.7967296264
B9: CTC-031 | C9: Venezuela - Av. Quito - Vacas Galindo - Tungurahua | G9: 1 | I9: 11.84759 | J9: 9.3729 | K9: 1.058308974 | M9: 10.23737 | N9: 1.61022 | O9: 0.61023 | P9: 0.32706 | Q9: 1.191581853
G10: =IFERROR((IF(B10=0,"-",(IF($G$5=$E$1,1,IF($G$5=$F$1,(1.5*E10+0.5*F10),IF($G$5=$G$1,1.5,"-")))))),"-") -> - | K10: =IFERROR(((I10*1.5+J10*0.5)/(I10+J10)),"-") -> - | Q10: =IFERROR(((M10*1.2+N10*1.5+O10*0.5+P10*0.7)/(SUM(M10:P10))),"-") -> -
G11: - | K11: - | Q11: -
G12: - | K12: - | Q12: -
G13: - | K13: - | Q13: -
G14: - | K14: - | Q14: -
G15: - | K15: - | Q15: -
G16: - | K16: - | Q16: -
G17: - | K17: - | Q17: -
G18: - | K18: - | Q18: -
G19: - | K19: - | Q19: -
G20: - | K20: - | Q20: -
G21: - | K21: - | Q21: -
G22: - | K22: - | Q22: -
G23: - | K23: - | Q23: -
G24: - | K24: - | Q24: -
G25: - | K25: - | Q25: -
G26: - | K26: - | Q26: -

Sheet NRR
C1: 1 | D1: 2 | E1: 3 | F1: 4 | G1: 5 | H1: 6 | I1: 7 | J1: 8 | K1: 9 | L1: 10 | M1: 11 | N1: 12 | O1: 13 | P1: 14 | Q1: 15 | R1: 16 | S1: 17 | T1: 18 | U1: 19 | V1: 20 | W1: 21 | X1: 22 | Y1: 36
E3: BASICO 1 | G3: BASICO 2 | K3: MEDIO | W3: Avanzado
L5: Caudal por tipo de fuga (m3/h)
I6: Periodo entre años: | L6: Tuberias | O6: Acometidas
G7: Año 1 | H7: Año 2 | I7: 2 | L7: 0.15 | M7: 1 | N7: 5 | O7: 0.15 | P7: 1 | Q7: 5 | W7: Pestaña Adicionales
B8: Codigo | C8: Sector Analizado / Direccion | E8: Valor de NRR asumido (m3/año/año) | G8: Volumen de perdidas reales (m3/año) | I8: NRR (m3/año/año) | K8: Fugas encontradas durante 1 CAF | L8: # de fugas tipo A | M8: # de fugas tipo B | N8: # de fugas tipo C | O8: # de fugas tipo D | P8: # de fugas tipo E | Q8: # de fugas tipo F | R8: Flujo agregado de todos los caudales encontrados (m3/h) | S8: Años | T8: NRR (m3/h/año) | U8: NRR (m3/año/año) | W8: NRR (m3/dia/dia) | X8: NRR (m3/año/año)
B9: CTC-029 | C9: Brasil - Av. Quito - Calle 22 SO - Tungurahua | E9: 8592.322633 | I9: =IFERROR(((H9-G9)/$I$7),"-") -> 0 | K9: =L9+M9+N9 -> 0 | R9: =IFERROR(((L9*$L$7)+(M9*$M$7)+(N9*$N$7)+(O9*$O$7)+(P9*$P$7)+(Q9*$Q$7)),"-") -> 0 | T9: =IFERROR((R9/S9),"-") -> - | U9: =IFERROR((T9)*(24*365),"-") -> - | X9: =IFERROR(W9*(365*365),"-") -> 0
B10: CTC-030 | C10: Calle 22 SO - Av. Quito - Venezuela - Tungurahua | E10: 9214.806814 | I10: =IFERROR(((H10-G10)/$I$7),"-") -> 0 | K10: =L10+M10+N10 -> 0 | R10: =(L10*$L$7)+(M10*$M$7)+(N10*$N$7)+(O10*$O$7)+(P10*$P$7)+(Q10*$Q$7) -> 0 | T10: =IFERROR((R10/S10),"-") -> - | U10: =IFERROR((T10)*(24*365),"-") -> - | X10: =IFERROR(W10*(365*365),"-") -> 0
B11: CTC-031 | C11: Venezuela - Av. Quito - Vacas Galindo - Tungurahua | E11: 12541.52555 | I11: 0 | K11: =L11+M11+N11 -> 0 | R11: 0 | T11: =IFERROR((R11/S11),"-") -> - | U11: - | X11: 0
I12: 0 | K12: 0 | R12: 0 | T12: - | U12: - | X12: 0
I13: 0 | K13: 0 | R13: 0 | T13: - | U13: - | X13: 0
I14: 0 | K14: 0 | R14: 0 | T14: - | U14: - | X14: 0
I15: 0 | K15: 0 | R15: 0 | T15: - | U15: - | X15: 0
I16: 0 | K16: 0 | R16: 0 | T16: - | U16: - | X16: 0
I17: 0 | K17: 0 | R17: 0 | T17: - | U17: - | X17: 0
I18: 0 | K18: 0 | R18: 0 | T18: - | U18: - | X18: 0
I19: 0 | K19: 0 | R19: 0 | T19: - | U19: - | X19: 0
I20: 0 | K20: 0 | R20: 0 | T20: - | U20: - | X20: 0
I21: 0 | K21: 0 | R21: 0 | T21: - | U21: - | X21: 0
I22: 0 | K22: 0 | R22: 0 | T22: - | U22: - | X22: 0
I23: 0 | K23: 0 | R23: 0 | T23: - | U23: - | X23: 0
I24: 0 | K24: 0 | R24: 0 | T24: - | U24: - | X24: 0
I25: 0 | K25: 0 | R25: 0 | T25: - | U25: - | X25: 0
I26: 0 | K26: 0 | R26: 0 | T26: - | U26: - | X26: 0
I27: 0 | K27: 0 | R27: 0 | T27: - | U27: - | X27: 0
I28: 0 | K28: 0 | R28: 0 | T28: - | U28: - | X28: 0

Sheet Costes
A1: 1 | B1: 2 | C1: 3 | D1: 4 | E1: 5 | F1: 6 | G1: 7 | H1: 8 | I1: 9 | J1: 10 | K1: 11 | L1: 12 | M1: 13 | N1: 14 | O1: 15 | P1: 16 | Q1: 17 | R1: 18 | S1: 19 | T1: 20 | U1: 21 | V1: 22 | W1: 23 | X1: 24 | Y1: 25 | Z1: 26 | AA1: 27 | AB1: 28 | AC1: 29 | AD1: 30 | AE1: 31 | AF1: 32 | AG1: 33 | AH1: 34 | AI1: 35 | AJ1: 36 | AK1: 37
A2: Coste Marginal del agua (USD/m3) | C2: =+C43 -> 0.06
A3: Coste de inspeccion (USD/km) | C3: =+C27 -> 46.4448
A7: Dias laborables anual | C7: 250 | I7: Grupo de trabajo
N8: NO EDITAR
A9: Equipo | C9: Coste (USD) | D9: Coste de manteniento (% del coste del equipo | E9: Vida util (años) | F9: Costo total (USD) | G9: Coste amortizado por dia laborable (USD) | I9: Grupo geofono | J9: Soundstick | O9: Coste diario de Inspeccion USD/dia | P9: Coste de inspeccion USD/km
A10: Geofono | C10: 6800 | D10: 0.05 | E10: 5 | F10: =C10*(1+D10) -> 7140 | G10: =F10/(E10*$C$7) -> 5.712 | I10: 1 | N10: =+I9 -> Grupo geofono | O10: 116.112 | P10: 46.4448
A11: Sound Stick | C11: 360 | D11: 0.05 | E11: 5 | F11: =C11*(1+D11) -> 378 | G11: 0.3024 | J11: 1 | N11: =+J9 -> Soundstick | O11: 110.7024 | P11: 55.3512
A12: Caudalimetro Ultrasonido portatil | C12: 12000 | D12: 0.05 | E12: 5 | F12: 12600 | G12: 10.08 | N12: =+K9 -> 0 | O12: 0 | P12: 0
A13: Data Logger | C13: 1550 | D13: 0.05 | E13: 5 | F13: 1627.5 | G13: 1.302 | N13: =+L9 -> 0 | O13: 0 | P13: 0
A14: Detector de tuberia metalicas | C14: 8000 | D14: 0.05 | E14: 5 | F14: 8400 | G14: 6.72
A15: Detector de tuberia no metalicas | C15: 8000 | D15: 0.05 | E15: 5 | F15: 8400 | G15: 6.72
A16: Generador electrico portatil | C16: 2000 | D16: 0.05 | E16: 5 | F16: 2100 | G16: 1.68
A17: Bomba centrifuga portatil | C17: 2500 | D17: 0.05 | E17: 5 | F17: 2625 | G17: 2.1
A18: Recurso humano por equipo de trabajo | C18: =800*12 -> 9600 | F18: 9600 | G18: =F18/($C$7) -> 38.4 | I18: 2 | J18: 2
A19: Camioneta (Amortizacion y mantenimiento anual) | C19: 40000 | D19: 0.05 | E19: 5 | F19: 42000 | G19: =F19/(E19*$C$7) -> 33.6 | I19: 1 | J19: 1
H20: Coste (USD/dia) | I20: =(I10*$G$10)+($G$11*I11)+($G$12*I12)+(I13*$G$13)+($G$14*I14)+($G$15*I15)+($G$16*I16)+($G$17*I17)+($G$18*I18)+($G$19*I19) -> 116.112 | J20: =(J10*$G$10)+($G$11*J11)+($G$12*J12)+(J13*$G$13)+($G$14*J14)+($G$15*J15)+($G$16*J16)+($G$17*J17)+($G$18*J18)+($G$19*J19) -> 110.7024 | K20: 0 | L20: 0
H21: Red inspeccionada (Km/dia) | I21: 2.5 | J21: 2
A22: Grupos de trabajo a utilizar | C22: Cant | D22: Coste (USD/dia) | E22: Longitud de red inspeccionada diaria (km/dia)
A23: Elegir: | B23: Grupo geofono | C23: 1 | D23: =IFERROR((C23*HLOOKUP(B23,I9:L21,12,FALSE)),0) -> 116.112 | E23: =IFERROR((HLOOKUP(B23,I9:L21,13,FALSE)),0) -> 2.5
A25: Resultados | C25: Coste | D25: Unidades
A26: Coste diario de inspeccion | C26: =+D23 -> 116.112 | D26: USD/dia
A27: Coste de inspeccion por km | C27: =IFERROR((D23/E23),0) -> 46.4448 | D27: USD/km
A33: Desglose de costes | C33: Coste | D33: Unidades
A34: Costes de produccion | C34: 0.06 | D34: USD/m3
A35: Costes de distribucion | C35: 0 | D35: USD/m3
A36: Costes de capital | C36: 0 | D36: USD/m3
A37: Costes ambientales | C37: 0 | D37: USD/m3
A38: Total | C38: =+SUM(C34:C37) -> 0.06 | D38: USD/m3
A40: Ingreso manual | C40: 0.06 | D40: USD/m3
A42: Coste marginal del agua
A43: Elegir: | B43: Manual | C43: =+IF(B43=A44,C38,IF(B43=A45,C40,0)) -> 0.06 | D43: USD/m3
A44: Desglose
A45: Manual

Sheet Rot. Not
B2: Tuberias | C2: m3/hora/rot. | D2: dia | E2: m3/rot | G2: Valores a 50 mca
C3: 36 | D3: 1 | E3: =C3*24*D3 -> 864
C4: 12 | D4: 3 | E4: =C4*24*D4 -> 864
C5: 1 | D5: 2 | E5: =C5*24*D5 -> 48
B7: Acometidas | C7: m3/hora/rot. | D7: dia | E7: m3/rot
C8: 1.6 | D8: 8 | E8: =C8*24*D8 -> 307.2
C9: 0.8 | D9: 16 | E9: 307.2
C10: 1 | D10: 2 | E10: 48

Sheet Q nocturnos
B2: Poblacion | C2: 1000
B3: Uso | C3: 0.01
B4: % activo | C4: 0.06
J5: NDF Calculado | L5: Vol fugado ajustado (m3/dia) | N5: CAUDALES (m3/h) | AM5: PRESIONES
A6: Día | B6: Caudal minimo | C6: Caudal consumido estimado | D6: Hora minimo consumo | E6: Presion Maxima | F6: Presion Promedio | G6: NDF Calculado | H6: NDF Asumido | I6: NNF | J6: Vol fugado calculado (m3/dia) | K6: Vol fugado ajustado (m3/dia) | L6: Vol fugado escogido (m3/dia) | N6: 00:00:00 | O6: 01:00:00 | P6: 02:00:00 | Q6: 03:00:00 | R6: 04:00:00 | S6: 05:00:00 | T6: 06:00:00 | U6: 07:00:00 | V6: 08:00:00 | W6: 09:00:00 | X6: 10:00:00 | Y6: 11:00:00 | Z6: 12:00:00 | AA6: 13:00:00 | AB6: 14:00:00 | AC6: 15:00:00 | AD6: 16:00:00 | AE6: 17:00:00 | AF6: 18:00:00 | AG6: 19:00:00 | AH6: 20:00:00 | AI6: 21:00:00 | AJ6: 22:00:00 | AK6: 23:00:00 | AM6: 00:00:00 | AN6: 01:00:00 | AO6: 02:00:00 | AP6: 03:00:00 | AQ6: 04:00:00 | AR6: 05:00:00 | AS6: 06:00:00 | AT6: 07:00:00 | AU6: 08:00:00 | AV6: 09:00:00 | AW6: 10:00:00 | AX6: 11:00:00 | AY6: 12:00:00 | AZ6: 13:00:00 | BA6: 14:00:00 | BB6: 15:00:00 | BC6: 16:00:00 | BD6: 17:00:00 | BE6: 18:00:00 | BF6: 19:00:00 | BG6: 20:00:00 | BH6: 21:00:00 | BI6: 22:00:00 | BJ6: 23:00:00
A7: 1 | B7: =MIN(N7:AK7) -> 0 | C7: =$C$2*$C$4*$C$3 -> 0.6 | D7: =IFERROR(INDEX($N$6:$AK$6,MATCH(B7,N7:AK7,0)),"-") -> - | E7: =IFERROR(INDEX(AM7:BJ7,MATCH(B7,N7:AK7,0)),"-") -> - | F7: =IFERROR(AVERAGE(AM7:BJ7),"-") -> - | G7: =IFERROR(24*(F7/E7),"-") -> - | I7: =IFERROR(B7-C7,"-") -> -0.6 | J7: =IFERROR(IF($J$5=$G$6,G7*I7,IF($J$5=$H$6,H7*I7,"Seleccionar NDF")),"-") -> - | L7: =+IF($L$5=$J$6,J7,IF($L$5=$K$6,K7,"-")) -> 0
A8: 2 | B8: =MIN(N8:AK8) -> 0 | C8: =$C$2*$C$4*$C$3 -> 0.6 | D8: - | E8: - | F8: =IFERROR(AVERAGE(AM8:BJ8),"-") -> - | G8: =IFERROR(24*(F8/E8),"-") -> - | I8: =IFERROR(B8-C8,"-") -> -0.6 | J8: - | L8: =+IF($L$5=$J$6,J8,IF($L$5=$K$6,K8,"-")) -> 0
A9: 3 | B9: 0 | C9: 0.6 | D9: - | E9: - | F9: - | G9: - | I9: -0.6 | J9: - | L9: 0
A10: 4 | B10: 0 | C10: 0.6 | D10: - | E10: - | F10: - | G10: - | I10: -0.6 | J10: - | L10: 0
A11: 5 | B11: 0 | C11: 0.6 | D11: - | E11: - | F11: - | G11: - | I11: -0.6 | J11: - | L11: 0
A12: 6 | B12: 0 | C12: 0.6 | D12: - | E12: - | F12: - | G12: - | I12: -0.6 | J12: - | L12: 0
A13: 7 | B13: 0 | C13: 0.6 | D13: - | E13: - | F13: - | G13: - | I13: -0.6 | J13: - | L13: 0
A14: 8 | B14: 0 | C14: 0.6 | D14: - | E14: - | F14: - | G14: - | I14: -0.6 | J14: - | L14: 0
A15: 9 | B15: 0 | C15: 0.6 | D15: - | E15: - | F15: - | G15: - | I15: -0.6 | J15: - | L15: 0
A16: 10 | B16: 0 | C16: 0.6 | D16: - | E16: - | F16: - | G16: - | I16: -0.6 | J16: - | L16: 0
A17: 11 | B17: 0 | C17: 0.6 | D17: - | E17: - | F17: - | G17: - | I17: -0.6 | J17: - | L17: 0
A18: 12 | B18: 0 | C18: 0.6 | D18: - | E18: - | F18: - | G18: - | I18: -0.6 | J18: - | L18: 0
A19: 13 | B19: 0 | C19: 0.6 | D19: - | E19: - | F19: - | G19: - | I19: -0.6 | J19: - | L19: 0
A20: 14 | B20: 0 | C20: 0.6 | D20: - | E20: - | F20: - | G20: - | I20: -0.6 | J20: - | L20: 0
A21: 15 | B21: 0 | C21: 0.6 | D21: - | E21: - | F21: - | G21: - | I21: -0.6 | J21: - | L21: 0
A22: 16 | B22: 0 | C22: 0.6 | D22: - | E22: - | F22: - | G22: - | I22: -0.6 | J22: - | L22: 0
A23: 17 | B23: 0 | C23: 0.6 | D23: - | E23: - | F23: - | G23: - | I23: -0.6 | J23: - | L23: 0
A24: 18 | B24: 0 | C24: 0.6 | D24: - | E24: - | F24: - | G24: - | I24: -0.6 | J24: - | L24: 0
A25: 19 | B25: 0 | C25: 0.6 | D25: - | E25: - | F25: - | G25: - | I25: -0.6 | J25: - | L25: 0
A26: 20 | B26: 0 | C26: 0.6 | D26: - | E26: - | F26: - | G26: - | I26: -0.6 | J26: - | L26: 0
A27: 21 | B27: 0 | C27: 0.6 | D27: - | E27: - | F27: - | G27: - | I27: -0.6 | J27: - | L27: 0
A28: 22 | B28: 0 | C28: 0.6 | D28: - | E28: - | F28: - | G28: - | I28: -0.6 | J28: - | L28: 0
A29: 23 | B29: 0 | C29: 0.6 | D29: - | E29: - | F29: - | G29: - | I29: -0.6 | J29: - | L29: 0
A30: 24 | B30: 0 | C30: 0.6 | D30: - | E30: - | F30: - | G30: - | I30: -0.6 | J30: - | L30: 0
A31: 25 | B31: 0 | C31: 0.6 | D31: - | E31: - | F31: - | G31: - | I31: -0.6 | J31: - | L31: 0
A32: 26 | B32: 0 | C32: 0.6 | D32: - | E32: - | F32: - | G32: - | I32: -0.6 | J32: - | L32: 0
A33: 27 | B33: 0 | C33: 0.6 | D33: - | E33: - | F33: - | G33: - | I33: -0.6 | J33: - | L33: 0
A34: 28 | B34: 0 | C34: 0.6 | D34: - | E34: - | F34: - | G34: - | I34: -0.6 | J34: - | L34: 0
A35: 29 | B35: 0 | C35: 0.6 | D35: - | E35: - | F35: - | G35: - | I35: -0.6 | J35: - | L35: 0
A36: 30 | B36: 0 | C36: 0.6 | D36: - | E36: - | F36: - | G36: - | I36: -0.6 | J36: - | L36: 0
A37: 31 | B37: 0 | C37: 0.6 | D37: - | E37: - | F37: - | G37: - | I37: -0.6 | J37: - | L37: 0
A38: 32 | B38: 0 | C38: 0.6 | D38: - | E38: - | F38: - | G38: - | I38: -0.6 | J38: - | L38: 0
A39: 33 | B39: 0 | C39: 0.6 | D39: - | E39: - | F39: - | G39: - | I39: -0.6 | J39: - | L39: 0
A40: 34 | B40: 0 | C40: 0.6 | D40: - | E40: - | F40: - | G40: - | I40: -0.6 | J40: - | L40: 0
A41: 35 | B41: 0 | C41: 0.6 | D41: - | E41: - | F41: - | G41: - | I41: -0.6 | J41: - | L41: 0
A42: 36 | B42: 0 | C42: 0.6 | D42: - | E42: - | F42: - | G42: - | I42: -0.6 | J42: - | L42: 0
A43: 37 | B43: 0 | C43: 0.6 | D43: - | E43: - | F43: - | G43: - | I43: -0.6 | J43: - | L43: 0
A44: 38 | B44: 0 | C44: 0.6 | D44: - | E44: - | F44: - | G44: - | I44: -0.6 | J44: - | L44: 0
A45: 39 | B45: 0 | C45: 0.6 | D45: - | E45: - | F45: - | G45: - | I45: -0.6 | J45: - | L45: 0
A46: 40 | B46: 0 | C46: 0.6 | D46: - | E46: - | F46: - | G46: - | I46: -0.6 | J46: - | L46: 0
A47: 41 | B47: 0 | C47: 0.6 | D47: - | E47: - | F47: - | G47: - | I47: -0.6 | J47: - | L47: 0
A48: 42 | B48: 0 | C48: 0.6 | D48: - | E48: - | F48: - | G48: - | I48: -0.6 | J48: - | L48: 0
A49: 43 | B49: 0 | C49: 0.6 | D49: - | E49: - | F49: - | G49: - | I49: -0.6 | J49: - | L49: 0
A50: 44 | B50: 0 | C50: 0.6 | D50: - | E50: - | F50: - | G50: - | I50: -0.6 | J50: - | L50: 0
A51: 45 | B51: 0 | C51: 0.6 | D51: - | E51: - | F51: - | G51: - | I51: -0.6 | J51: - | L51: 0
A52: 46 | B52: 0 | C52: 0.6 | D52: - | E52: - | F52: - | G52: - | I52: -0.6 | J52: - | L52: 0
A53: 47 | B53: 0 | C53: 0.6 | D53: - | E53: - | F53: - | G53: - | I53: -0.6 | J53: - | L53: 0
A54: 48 | B54: 0 | C54: 0.6 | D54: - | E54: - | F54: - | G54: - | I54: -0.6 | J54: - | L54: 0
A55: 49 | B55: 0 | C55: 0.6 | D55: - | E55: - | F55: - | G55: - | I55: -0.6 | J55: - | L55: 0
A56: 50 | B56: 0 | C56: 0.6 | D56: - | E56: - | F56: - | G56: - | I56: -0.6 | J56: - | L56: 0
A57: 51 | B57: 0 | C57: 0.6 | D57: - | E57: - | F57: - | G57: - | I57: -0.6 | J57: - | L57: 0
A58: 52 | B58: 0 | C58: 0.6 | D58: - | E58: - | F58: - | G58: - | I58: -0.6 | J58: - | L58: 0
A59: 53 | B59: 0 | C59: 0.6 | D59: - | E59: - | F59: - | G59: - | I59: -0.6 | J59: - | L59: 0
A60: 54 | B60: 0 | C60: 0.6 | D60: - | E60: - | F60: - | G60: - | I60: -0.6 | J60: - | L60: 0
A61: 55 | B61: 0 | C61: 0.6 | D61: - | E61: - | F61: - | G61: - | I61: -0.6 | J61: - | L61: 0
A62: 56 | B62: 0 | C62: 0.6 | D62: - | E62: - | F62: - | G62: - | I62: -0.6 | J62: - | L62: 0
A63: 57 | B63: 0 | C63: 0.6 | D63: - | E63: - | F63: - | G63: - | I63: -0.6 | J63: - | L63: 0
A64: 58 | B64: 0 | C64: 0.6 | D64: - | E64: - | F64: - | G64: - | I64: -0.6 | J64: - | L64: 0
A65: 59 | B65: 0 | C65: 0.6 | D65: - | E65: - | F65: - | G65: - | I65: -0.6 | J65: - | L65: 0
A66: 60 | B66: 0 | C66: 0.6 | D66: - | E66: - | F66: - | G66: - | I66: -0.6 | J66: - | L66: 0
A67: 61 | B67: 0 | C67: 0.6 | D67: - | E67: - | F67: - | G67: - | I67: -0.6 | J67: - | L67: 0
A68: 62 | B68: 0 | C68: 0.6 | D68: - | E68: - | F68: - | G68: - | I68: -0.6 | J68: - | L68: 0
A69: 63 | B69: 0 | C69: 0.6 | D69: - | E69: - | F69: - | G69: - | I69: -0.6 | J69: - | L69: 0
A70: 64 | B70: 0 | C70: 0.6 | D70: - | E70: - | F70: - | G70: - | I70: -0.6 | J70: - | L70: 0
A71: 65 | B71: 0 | C71: 0.6 | D71: =IFERROR(INDEX($N$6:$AK$6,MATCH(B71,N71:AK71,0)),"-") -> - | E71: =IFERROR(INDEX(AM71:BJ71,MATCH(B71,N71:AK71,0)),"-") -> - | F71: - | G71: - | I71: -0.6 | J71: =IFERROR(IF($J$5=$G$6,G71*I71,IF($J$5=$H$6,H71*I71,"Seleccionar NDF")),"-") -> - | L71: 0
A72: 66 | B72: =MIN(N72:AK72) -> 0 | C72: =$C$2*$C$4*$C$3 -> 0.6 | D72: - | E72: - | F72: =IFERROR(AVERAGE(AM72:BJ72),"-") -> - | G72: =IFERROR(24*(F72/E72),"-") -> - | I72: =IFERROR(B72-C72,"-") -> -0.6 | J72: - | L72: =+IF($L$5=$J$6,J72,IF($L$5=$K$6,K72,"-")) -> 0
A73: 67 | B73: 0 | C73: 0.6 | D73: - | E73: - | F73: - | G73: - | I73: -0.6 | J73: - | L73: 0
A74: 68 | B74: 0 | C74: 0.6 | D74: - | E74: - | F74: - | G74: - | I74: -0.6 | J74: - | L74: 0
A75: 69 | B75: 0 | C75: 0.6 | D75: - | E75: - | F75: - | G75: - | I75: -0.6 | J75: - | L75: 0
A76: 70 | B76: 0 | C76: 0.6 | D76: - | E76: - | F76: - | G76: - | I76: -0.6 | J76: - | L76: 0
A77: 71 | B77: 0 | C77: 0.6 | D77: - | E77: - | F77: - | G77: - | I77: -0.6 | J77: - | L77: 0
A78: 72 | B78: 0 | C78: 0.6 | D78: - | E78: - | F78: - | G78: - | I78: -0.6 | J78: - | L78: 0
A79: 73 | B79: 0 | C79: 0.6 | D79: - | E79: - | F79: - | G79: - | I79: -0.6 | J79: - | L79: 0
A80: 74 | B80: 0 | C80: 0.6 | D80: - | E80: - | F80: - | G80: - | I80: -0.6 | J80: - | L80: 0
A81: 75 | B81: 0 | C81: 0.6 | D81: - | E81: - | F81: - | G81: - | I81: -0.6 | J81: - | L81: 0
A82: 76 | B82: 0 | C82: 0.6 | D82: - | E82: - | F82: - | G82: - | I82: -0.6 | J82: - | L82: 0
A83: 77 | B83: 0 | C83: 0.6 | D83: - | E83: - | F83: - | G83: - | I83: -0.6 | J83: - | L83: 0
A84: 78 | B84: 0 | C84: 0.6 | D84: - | E84: - | F84: - | G84: - | I84: -0.6 | J84: - | L84: 0
A85: 79 | B85: 0 | C85: 0.6 | D85: - | E85: - | F85: - | G85: - | I85: -0.6 | J85: - | L85: 0
A86: 80 | B86: 0 | C86: 0.6 | D86: - | E86: - | F86: - | G86: - | I86: -0.6 | J86: - | L86: 0
A87: 81 | B87: 0 | C87: 0.6 | D87: - | E87: - | F87: - | G87: - | I87: -0.6 | J87: - | L87: 0
A88: 82 | B88: 0 | C88: 0.6 | D88: - | E88: - | F88: - | G88: - | I88: -0.6 | J88: - | L88: 0
A89: 83 | B89: 0 | C89: 0.6 | D89: - | E89: - | F89: - | G89: - | I89: -0.6 | J89: - | L89: 0
A90: 84 | B90: 0 | C90: 0.6 | D90: - | E90: - | F90: - | G90: - | I90: -0.6 | J90: - | L90: 0
A91: 85 | B91: 0 | C91: 0.6 | D91: - | E91: - | F91: - | G91: - | I91: -0.6 | J91: - | L91: 0
A92: 86 | B92: 0 | C92: 0.6 | D92: - | E92: - | F92: - | G92: - | I92: -0.6 | J92: - | L92: 0
A93: 87 | B93: 0 | C93: 0.6 | D93: - | E93: - | F93: - | G93: - | I93: -0.6 | J93: - | L93: 0
A94: 88 | B94: 0 | C94: 0.6 | D94: - | E94: - | F94: - | G94: - | I94: -0.6 | J94: - | L94: 0
A95: 89 | B95: 0 | C95: 0.6 | D95: - | E95: - | F95: - | G95: - | I95: -0.6 | J95: - | L95: 0
A96: 90 | B96: 0 | C96: 0.6 | D96: - | E96: - | F96: - | G96: - | I96: -0.6 | J96: - | L96: 0
A97: 91 | B97: 0 | C97: 0.6 | D97: - | E97: - | F97: - | G97: - | I97: -0.6 | J97: - | L97: 0
A98: 92 | B98: 0 | C98: 0.6 | D98: - | E98: - | F98: - | G98: - | I98: -0.6 | J98: - | L98: 0
A99: 93 | B99: 0 | C99: 0.6 | D99: - | E99: - | F99: - | G99: - | I99: -0.6 | J99: - | L99: 0
A100: 94 | B100: 0 | C100: 0.6 | D100: - | E100: - | F100: - | G100: - | I100: -0.6 | J100: - | L100: 0
A101: 95 | B101: 0 | C101: 0.6 | D101: - | E101: - | F101: - | G101: - | I101: -0.6 | J101: - | L101: 0
A102: 96 | B102: 0 | C102: 0.6 | D102: - | E102: - | F102: - | G102: - | I102: -0.6 | J102: - | L102: 0
A103: 97 | B103: 0 | C103: 0.6 | D103: - | E103: - | F103: - | G103: - | I103: -0.6 | J103: - | L103: 0
A104: 98 | B104: 0 | C104: 0.6 | D104: - | E104: - | F104: - | G104: - | I104: -0.6 | J104: - | L104: 0
A105: 99 | B105: 0 | C105: 0.6 | D105: - | E105: - | F105: - | G105: - | I105: -0.6 | J105: - | L105: 0
A106: 100 | B106: 0 | C106: 0.6 | D106: - | E106: - | F106: - | G106: - | I106: -0.6 | J106: - | L106: 0
A107: 101 | B107: 0 | C107: 0.6 | D107: - | E107: - | F107: - | G107: - | I107: -0.6 | J107: - | L107: 0
A108: 102 | B108: 0 | C108: 0.6 | D108: - | E108: - | F108: - | G108: - | I108: -0.6 | J108: - | L108: 0
A109: 103 | B109: 0 | C109: 0.6 | D109: - | E109: - | F109: - | G109: - | I109: -0.6 | J109: - | L109: 0
A110: 104 | B110: 0 | C110: 0.6 | D110: - | E110: - | F110: - | G110: - | I110: -0.6 | J110: - | L110: 0
A111: 105 | B111: 0 | C111: 0.6 | D111: - | E111: - | F111: - | G111: - | I111: -0.6 | J111: - | L111: 0
A112: 106 | B112: 0 | C112: 0.6 | D112: - | E112: - | F112: - | G112: - | I112: -0.6 | J112: - | L112: 0
A113: 107 | B113: 0 | C113: 0.6 | D113: - | E113: - | F113: - | G113: - | I113: -0.6 | J113: - | L113: 0
A114: 108 | B114: 0 | C114: 0.6 | D114: - | E114: - | F114: - | G114: - | I114: -0.6 | J114: - | L114: 0
A115: 109 | B115: 0 | C115: 0.6 | D115: - | E115: - | F115: - | G115: - | I115: -0.6 | J115: - | L115: 0
A116: 110 | B116: 0 | C116: 0.6 | D116: - | E116: - | F116: - | G116: - | I116: -0.6 | J116: - | L116: 0
A117: 111 | B117: 0 | C117: 0.6 | D117: - | E117: - | F117: - | G117: - | I117: -0.6 | J117: - | L117: 0
A118: 112 | B118: 0 | C118: 0.6 | D118: - | E118: - | F118: - | G118: - | I118: -0.6 | J118: - | L118: 0
A119: 113 | B119: 0 | C119: 0.6 | D119: - | E119: - | F119: - | G119: - | I119: -0.6 | J119: - | L119: 0
A120: 114 | B120: 0 | C120: 0.6 | D120: - | E120: - | F120: - | G120: - | I120: -0.6 | J120: - | L120: 0
A121: 115 | B121: 0 | C121: 0.6 | D121: - | E121: - | F121: - | G121: - | I121: -0.6 | J121: - | L121: 0
A122: 116 | B122: 0 | C122: 0.6 | D122: - | E122: - | F122: - | G122: - | I122: -0.6 | J122: - | L122: 0
A123: 117 | B123: 0 | C123: 0.6 | D123: - | E123: - | F123: - | G123: - | I123: -0.6 | J123: - | L123: 0
A124: 118 | B124: 0 | C124: 0.6 | D124: - | E124: - | F124: - | G124: - | I124: -0.6 | J124: - | L124: 0
A125: 119 | B125: 0 | C125: 0.6 | D125: - | E125: - | F125: - | G125: - | I125: -0.6 | J125: - | L125: 0
A126: 120 | B126: 0 | C126: 0.6 | D126: - | E126: - | F126: - | G126: - | I126: -0.6 | J126: - | L126: 0
A127: 121 | B127: 0 | C127: 0.6 | D127: - | E127: - | F127: - | G127: - | I127: -0.6 | J127: - | L127: 0
A128: 122 | B128: 0 | C128: 0.6 | D128: - | E128: - | F128: - | G128: - | I128: -0.6 | J128: - | L128: 0
A129: 123 | B129: 0 | C129: 0.6 | D129: - | E129: - | F129: - | G129: - | I129: -0.6 | J129: - | L129: 0
A130: 124 | B130: 0 | C130: 0.6 | D130: - | E130: - | F130: - | G130: - | I130: -0.6 | J130: - | L130: 0
A131: 125 | B131: 0 | C131: 0.6 | D131: - | E131: - | F131: - | G131: - | I131: -0.6 | J131: - | L131: 0
A132: 126 | B132: 0 | C132: 0.6 | D132: - | E132: - | F132: - | G132: - | I132: -0.6 | J132: - | L132: 0
A133: 127 | B133: 0 | C133: 0.6 | D133: - | E133: - | F133: - | G133: - | I133: -0.6 | J133: - | L133: 0
A134: 128 | B134: 0 | C134: 0.6 | D134: - | E134: - | F134: - | G134: - | I134: -0.6 | J134: - | L134: 0
A135: 129 | B135: 0 | C135: 0.6 | D135: =IFERROR(INDEX($N$6:$AK$6,MATCH(B135,N135:AK135,0)),"-") -> - | E135: =IFERROR(INDEX(AM135:BJ135,MATCH(B135,N135:AK135,0)),"-") -> - | F135: - | G135: - | I135: -0.6 | J135: =IFERROR(IF($J$5=$G$6,G135*I135,IF($J$5=$H$6,H135*I135,"Seleccionar NDF")),"-") -> - | L135: 0
A136: 130 | B136: =MIN(N136:AK136) -> 0 | C136: =$C$2*$C$4*$C$3 -> 0.6 | D136: - | E136: - | F136: =IFERROR(AVERAGE(AM136:BJ136),"-") -> - | G136: =IFERROR(24*(F136/E136),"-") -> - | I136: =IFERROR(B136-C136,"-") -> -0.6 | J136: - | L136: =+IF($L$5=$J$6,J136,IF($L$5=$K$6,K136,"-")) -> 0
A137: 131 | B137: 0 | C137: 0.6 | D137: - | E137: - | F137: - | G137: - | I137: -0.6 | J137: - | L137: 0
A138: 132 | B138: 0 | C138: 0.6 | D138: - | E138: - | F138: - | G138: - | I138: -0.6 | J138: - | L138: 0
A139: 133 | B139: 0 | C139: 0.6 | D139: - | E139: - | F139: - | G139: - | I139: -0.6 | J139: - | L139: 0
A140: 134 | B140: 0 | C140: 0.6 | D140: - | E140: - | F140: - | G140: - | I140: -0.6 | J140: - | L140: 0
A141: 135 | B141: 0 | C141: 0.6 | D141: - | E141: - | F141: - | G141: - | I141: -0.6 | J141: - | L141: 0
A142: 136 | B142: 0 | C142: 0.6 | D142: - | E142: - | F142: - | G142: - | I142: -0.6 | J142: - | L142: 0
A143: 137 | B143: 0 | C143: 0.6 | D143: - | E143: - | F143: - | G143: - | I143: -0.6 | J143: - | L143: 0
A144: 138 | B144: 0 | C144: 0.6 | D144: - | E144: - | F144: - | G144: - | I144: -0.6 | J144: - | L144: 0
A145: 139 | B145: 0 | C145: 0.6 | D145: - | E145: - | F145: - | G145: - | I145: -0.6 | J145: - | L145: 0
A146: 140 | B146: 0 | C146: 0.6 | D146: - | E146: - | F146: - | G146: - | I146: -0.6 | J146: - | L146: 0
A147: 141 | B147: 0 | C147: 0.6 | D147: - | E147: - | F147: - | G147: - | I147: -0.6 | J147: - | L147: 0
A148: 142 | B148: 0 | C148: 0.6 | D148: - | E148: - | F148: - | G148: - | I148: -0.6 | J148: - | L148: 0
A149: 143 | B149: 0 | C149: 0.6 | D149: - | E149: - | F149: - | G149: - | I149: -0.6 | J149: - | L149: 0
A150: 144 | B150: 0 | C150: 0.6 | D150: - | E150: - | F150: - | G150: - | I150: -0.6 | J150: - | L150: 0
A151: 145 | B151: 0 | C151: 0.6 | D151: - | E151: - | F151: - | G151: - | I151: -0.6 | J151: - | L151: 0
A152: 146 | B152: 0 | C152: 0.6 | D152: - | E152: - | F152: - | G152: - | I152: -0.6 | J152: - | L152: 0
A153: 147 | B153: 0 | C153: 0.6 | D153: - | E153: - | F153: - | G153: - | I153: -0.6 | J153: - | L153: 0
A154: 148 | B154: 0 | C154: 0.6 | D154: - | E154: - | F154: - | G154: - | I154: -0.6 | J154: - | L154: 0
A155: 149 | B155: 0 | C155: 0.6 | D155: - | E155: - | F155: - | G155: - | I155: -0.6 | J155: - | L155: 0
A156: 150 | B156: 0 | C156: 0.6 | D156: - | E156: - | F156: - | G156: - | I156: -0.6 | J156: - | L156: 0
A157: 151 | B157: 0 | C157: 0.6 | D157: - | E157: - | F157: - | G157: - | I157: -0.6 | J157: - | L157: 0
A158: 152 | B158: 0 | C158: 0.6 | D158: - | E158: - | F158: - | G158: - | I158: -0.6 | J158: - | L158: 0
A159: 153 | B159: 0 | C159: 0.6 | D159: - | E159: - | F159: - | G159: - | I159: -0.6 | J159: - | L159: 0
A160: 154 | B160: 0 | C160: 0.6 | D160: - | E160: - | F160: - | G160: - | I160: -0.6 | J160: - | L160: 0
A161: 155 | B161: 0 | C161: 0.6 | D161: - | E161: - | F161: - | G161: - | I161: -0.6 | J161: - | L161: 0
A162: 156 | B162: 0 | C162: 0.6 | D162: - | E162: - | F162: - | G162: - | I162: -0.6 | J162: - | L162: 0
A163: 157 | B163: 0 | C163: 0.6 | D163: - | E163: - | F163: - | G163: - | I163: -0.6 | J163: - | L163: 0
A164: 158 | B164: 0 | C164: 0.6 | D164: - | E164: - | F164: - | G164: - | I164: -0.6 | J164: - | L164: 0
A165: 159 | B165: 0 | C165: 0.6 | D165: - | E165: - | F165: - | G165: - | I165: -0.6 | J165: - | L165: 0
A166: 160 | B166: 0 | C166: 0.6 | D166: - | E166: - | F166: - | G166: - | I166: -0.6 | J166: - | L166: 0
A167: 161 | B167: 0 | C167: 0.6 | D167: - | E167: - | F167: - | G167: - | I167: -0.6 | J167: - | L167: 0
A168: 162 | B168: 0 | C168: 0.6 | D168: - | E168: - | F168: - | G168: - | I168: -0.6 | J168: - | L168: 0
A169: 163 | B169: 0 | C169: 0.6 | D169: - | E169: - | F169: - | G169: - | I169: -0.6 | J169: - | L169: 0
A170: 164 | B170: 0 | C170: 0.6 | D170: - | E170: - | F170: - | G170: - | I170: -0.6 | J170: - | L170: 0
A171: 165 | B171: 0 | C171: 0.6 | D171: - | E171: - | F171: - | G171: - | I171: -0.6 | J171: - | L171: 0
A172: 166 | B172: 0 | C172: 0.6 | D172: - | E172: - | F172: - | G172: - | I172: -0.6 | J172: - | L172: 0
A173: 167 | B173: 0 | C173: 0.6 | D173: - | E173: - | F173: - | G173: - | I173: -0.6 | J173: - | L173: 0
A174: 168 | B174: 0 | C174: 0.6 | D174: - | E174: - | F174: - | G174: - | I174: -0.6 | J174: - | L174: 0
A175: 169 | B175: 0 | C175: 0.6 | D175: - | E175: - | F175: - | G175: - | I175: -0.6 | J175: - | L175: 0
A176: 170 | B176: 0 | C176: 0.6 | D176: - | E176: - | F176: - | G176: - | I176: -0.6 | J176: - | L176: 0
A177: 171 | B177: 0 | C177: 0.6 | D177: - | E177: - | F177: - | G177: - | I177: -0.6 | J177: - | L177: 0
A178: 172 | B178: 0 | C178: 0.6 | D178: - | E178: - | F178: - | G178: - | I178: -0.6 | J178: - | L178: 0
A179: 173 | B179: 0 | C179: 0.6 | D179: - | E179: - | F179: - | G179: - | I179: -0.6 | J179: - | L179: 0
A180: 174 | B180: 0 | C180: 0.6 | D180: - | E180: - | F180: - | G180: - | I180: -0.6 | J180: - | L180: 0
A181: 175 | B181: 0 | C181: 0.6 | D181: - | E181: - | F181: - | G181: - | I181: -0.6 | J181: - | L181: 0
A182: 176 | B182: 0 | C182: 0.6 | D182: - | E182: - | F182: - | G182: - | I182: -0.6 | J182: - | L182: 0
A183: 177 | B183: 0 | C183: 0.6 | D183: - | E183: - | F183: - | G183: - | I183: -0.6 | J183: - | L183: 0
A184: 178 | B184: 0 | C184: 0.6 | D184: - | E184: - | F184: - | G184: - | I184: -0.6 | J184: - | L184: 0
A185: 179 | B185: 0 | C185: 0.6 | D185: - | E185: - | F185: - | G185: - | I185: -0.6 | J185: - | L185: 0
A186: 180 | B186: 0 | C186: 0.6 | D186: - | E186: - | F186: - | G186: - | I186: -0.6 | J186: - | L186: 0
A187: 181 | B187: 0 | C187: 0.6 | D187: - | E187: - | F187: - | G187: - | I187: -0.6 | J187: - | L187: 0
A188: 182 | B188: 0 | C188: 0.6 | D188: - | E188: - | F188: - | G188: - | I188: -0.6 | J188: - | L188: 0
A189: 183 | B189: 0 | C189: 0.6 | D189: - | E189: - | F189: - | G189: - | I189: -0.6 | J189: - | L189: 0
A190: 184 | B190: 0 | C190: 0.6 | D190: - | E190: - | F190: - | G190: - | I190: -0.6 | J190: - | L190: 0
A191: 185 | B191: 0 | C191: 0.6 | D191: - | E191: - | F191: - | G191: - | I191: -0.6 | J191: - | L191: 0
A192: 186 | B192: 0 | C192: 0.6 | D192: - | E192: - | F192: - | G192: - | I192: -0.6 | J192: - | L192: 0
A193: 187 | B193: 0 | C193: 0.6 | D193: - | E193: - | F193: - | G193: - | I193: -0.6 | J193: - | L193: 0
A194: 188 | B194: 0 | C194: 0.6 | D194: - | E194: - | F194: - | G194: - | I194: -0.6 | J194: - | L194: 0
A195: 189 | B195: 0 | C195: 0.6 | D195: - | E195: - | F195: - | G195: - | I195: -0.6 | J195: - | L195: 0
A196: 190 | B196: 0 | C196: 0.6 | D196: - | E196: - | F196: - | G196: - | I196: -0.6 | J196: - | L196: 0
A197: 191 | B197: 0 | C197: 0.6 | D197: - | E197: - | F197: - | G197: - | I197: -0.6 | J197: - | L197: 0
A198: 192 | B198: 0 | C198: 0.6 | D198: - | E198: - | F198: - | G198: - | I198: -0.6 | J198: - | L198: 0
A199: 193 | B199: 0 | C199: 0.6 | D199: =IFERROR(INDEX($N$6:$AK$6,MATCH(B199,N199:AK199,0)),"-") -> - | E199: =IFERROR(INDEX(AM199:BJ199,MATCH(B199,N199:AK199,0)),"-") -> - | F199: - | G199: - | I199: -0.6 | J199: =IFERROR(IF($J$5=$G$6,G199*I199,IF($J$5=$H$6,H199*I199,"Seleccionar NDF")),"-") -> - | L199: 0
A200: 194 | B200: =MIN(N200:AK200) -> 0 | C200: =$C$2*$C$4*$C$3 -> 0.6 | D200: - | E200: - | F200: =IFERROR(AVERAGE(AM200:BJ200),"-") -> - | G200: =IFERROR(24*(F200/E200),"-") -> - | I200: =IFERROR(B200-C200,"-") -> -0.6 | J200: - | L200: =+IF($L$5=$J$6,J200,IF($L$5=$K$6,K200,"-")) -> 0
A201: 195 | B201: 0 | C201: 0.6 | D201: - | E201: - | F201: - | G201: - | I201: -0.6 | J201: - | L201: 0
... 170 more rows

Sheet Vol mensual
A5: Mes | B5: Volumen inyectado mensual | C5: Volumen facturado mensual | D5: Vol fugado (m3/mes)
A6: 1 | D6: =IFERROR(B6-C6,"-") -> 0
A7: 2 | D7: =IFERROR(B7-C7,"-") -> 0
A8: 3 | D8: 0
A9: 4 | D9: 0
A10: 5 | D10: 0
A11: 6 | D11: 0
A12: 7 | D12: 0
A13: 8 | D13: 0
A14: 9 | D14: 0
A15: 10 | D15: 0
A16: 11 | D16: 0
A17: 12 | D17: 0
C20: m3/mes/mes
B21: =+B20/(30*30) -> 0 | C21: m3/dia/dia

Sheet ELL (Método 2)
F1: Basico 1 | G1: Basico 2 | H1: Intermedio | I1: Avanzado
B3: INFORMACION | E3: EARL | M3: UARL | S3: ELL
E5: Basico 1
B6: Codigo | C6: Sector Analizado / Direccion | E6: NRR (m3/año/año) | F6: Longitud de tuberia (km) | G6: Costes de intervencion (USD) | H6: Coste del agua (USD/m3) | I6: Frecuencia Optima de Inspeccion (Años) | J6: Porcentaje Anualmente Inspeccionado | K6: Perdidas Reales Anuales Economicas (EARL) (m3) | M6: Longitud de tuberias (km) | N6: Longitud de acometidas (km) | O6: Numero de acometidas | P6: Presion promedio (mca) | Q6: Perdidas Reales Anuales Inevitables ("UARL") (m3) | S6: ELL (m3) | V6: Metodo 1 | W6: Metodo 2 | X6: Diferencia
B7: CTC-029 | C7: Brasil - Av. Quito - Calle 22 SO - Tungurahua | E7: =IFERROR((IF($E$5=$F$1,VLOOKUP(C7,NRR!$C$9:$Y$28,3,FALSE),IF('ELL (Método 2)'!$E$5='ELL (Método 2)'!$G$1,VLOOKUP(C7,NRR!$C$9:$Y$28,7,FALSE),IF('ELL (Método 2)'!$E$5='ELL (Método 2)'!$H$1,VLOOKUP(C7,NRR!$C$9:$Y$28,19,FALSE),IF('ELL (Método 2)'!$E$5='ELL (Método 2)'!$I$1,VLOOKUP(C7,NRR!$C$9:$Y$28,22,FALSE),"Elegir Metodo"))))),"-") -> 8592.322633 | F7: 11.77897 | G7: =Costes!$C$3*'ELL (Método 2)'!F7 -> 547.0719059 | H7: =+Costes!$C$2 -> 0.06 | I7: =IFERROR(SQRT((2*G7)/(H7*E7)),"-") -> 1.456821328 | J7: =IFERROR(100/I7,"-") -> 68.64259745 | K7: =IFERROR(J7*G7/H7/100,"-") -> 6258.739435 | M7: 11.77897 | N7: 0.6603 | O7: 842 | P7: =20.9-1 -> 19.9 | Q7: =IFERROR((18*M7+0.8*O7+25*N7)*P7*(365/1000),"-") -> 6552.613701 | S7: =IFERROR(K7+Q7,"-") -> 12811.35314 | V7: =+ELL!AC7 -> 13288.53888 | W7: =+S7 -> 12811.35314 | X7: =+ABS(V7-W7) -> 477.1857455
B8: CTC-030 | C8: Calle 22 SO - Av. Quito - Venezuela - Tungurahua | E8: =IFERROR((IF($E$5=$F$1,VLOOKUP(C8,NRR!$C$9:$Y$28,3,FALSE),IF('ELL (Método 2)'!$E$5='ELL (Método 2)'!$G$1,VLOOKUP(C8,NRR!$C$9:$Y$28,7,FALSE),IF('ELL (Método 2)'!$E$5='ELL (Método 2)'!$H$1,VLOOKUP(C8,NRR!$C$9:$Y$28,19,FALSE),IF('ELL (Método 2)'!$E$5='ELL (Método 2)'!$I$1,VLOOKUP(C8,NRR!$C$9:$Y$28,22,FALSE),"Elegir Metodo"))))),"-") -> 9214.806814 | F8: 13.1108 | G8: =Costes!$C$3*'ELL (Método 2)'!F8 -> 608.9284838 | H8: =+Costes!$C$2 -> 0.06 | I8: =IFERROR(SQRT((2*G8)/(H8*E8)),"-") -> 1.48415548 | J8: =IFERROR(100/I8,"-") -> 67.37838545 | K8: =IFERROR(J8*G8/H8/100,"-") -> 6838.103016 | M8: 13.1108 | N8: 0.43447 | O8: 903 | P8: =20.9-1 -> 19.9 | Q8: =IFERROR((18*M8+0.8*O8+25*N8)*P8*(365/1000),"-") -> 7040.192046 | S8: 13878.29506 | V8: =+ELL!AC8 -> 16172.89212 | W8: =+S8 -> 13878.29506 | X8: =+ABS(V8-W8) -> 2294.597058
B9: CTC-031 | C9: Venezuela - Av. Quito - Vacas Galindo - Tungurahua | E9: =IFERROR((IF($E$5=$F$1,VLOOKUP(C9,NRR!$C$9:$Y$28,3,FALSE),IF('ELL (Método 2)'!$E$5='ELL (Método 2)'!$G$1,VLOOKUP(C9,NRR!$C$9:$Y$28,7,FALSE),IF('ELL (Método 2)'!$E$5='ELL (Método 2)'!$H$1,VLOOKUP(C9,NRR!$C$9:$Y$28,19,FALSE),IF('ELL (Método 2)'!$E$5='ELL (Método 2)'!$I$1,VLOOKUP(C9,NRR!$C$9:$Y$28,22,FALSE),"Elegir Metodo"))))),"-") -> 12541.52555 | F9: 12.78488 | G9: =Costes!$C$3*'ELL (Método 2)'!F9 -> 593.7911946 | H9: =+Costes!$C$2 -> 0.06 | I9: 1.256264436 | J9: 79.6010753 | K9: 7877.736266 | M9: 12.78488 | N9: 0.14069 | O9: 1229 | P9: 19.9 | Q9: 8838.554311 | S9: 16716.29058 | V9: =+ELL!AC9 -> 15745.58037 | W9: =+S9 -> 16716.29058 | X9: 970.7102039
E10: =IFERROR((IF($E$5=$F$1,VLOOKUP(C10,NRR!$C$9:$Y$28,3,FALSE),IF('ELL (Método 2)'!$E$5='ELL (Método 2)'!$G$1,VLOOKUP(C10,NRR!$C$9:$Y$28,7,FALSE),IF('ELL (Método 2)'!$E$5='ELL (Método 2)'!$H$1,VLOOKUP(C10,NRR!$C$9:$Y$28,19,FALSE),IF('ELL (Método 2)'!$E$5='ELL (Método 2)'!$I$1,VLOOKUP(C10,NRR!$C$9:$Y$28,22,FALSE),"Elegir Metodo"))))),"-") -> - | G10: =Costes!$C$3*'ELL (Método 2)'!F10 -> 0 | H10: =+Costes!$C$2 -> 0.06 | I10: - | J10: - | K10: - | Q10: =IFERROR((18*M10+0.8*O10+25*N10)*P10,"-") -> 0 | S10: -
E11: =IFERROR((IF($E$5=$F$1,VLOOKUP(C11,NRR!$C$9:$Y$28,3,FALSE),IF('ELL (Método 2)'!$E$5='ELL (Método 2)'!$G$1,VLOOKUP(C11,NRR!$C$9:$Y$28,7,FALSE),IF('ELL (Método 2)'!$E$5='ELL (Método 2)'!$H$1,VLOOKUP(C11,NRR!$C$9:$Y$28,19,FALSE),IF('ELL (Método 2)'!$E$5='ELL (Método 2)'!$I$1,VLOOKUP(C11,NRR!$C$9:$Y$28,22,FALSE),"Elegir Metodo"))))),"-") -> - | G11: =Costes!$C$3*'ELL (Método 2)'!F11 -> 0 | H11: =+Costes!$C$2 -> 0.06 | I11: - | J11: - | K11: - | Q11: 0 | S11: -
E12: =IFERROR((IF($E$5=$F$1,VLOOKUP(C12,NRR!$C$9:$Y$28,3,FALSE),IF('ELL (Método 2)'!$E$5='ELL (Método 2)'!$G$1,VLOOKUP(C12,NRR!$C$9:$Y$28,7,FALSE),IF('ELL (Método 2)'!$E$5='ELL (Método 2)'!$H$1,VLOOKUP(C12,NRR!$C$9:$Y$28,19,FALSE),IF('ELL (Método 2)'!$E$5='ELL (Método 2)'!$I$1,VLOOKUP(C12,NRR!$C$9:$Y$28,22,FALSE),"Elegir Metodo"))))),"-") -> - | G12: =Costes!$C$3*'ELL (Método 2)'!F12 -> 0 | H12: =+Costes!$C$2 -> 0.06 | I12: - | J12: - | K12: - | Q12: 0 | S12: -
E13: =IFERROR((IF($E$5=$F$1,VLOOKUP(C13,NRR!$C$9:$Y$28,3,FALSE),IF('ELL (Método 2)'!$E$5='ELL (Método 2)'!$G$1,VLOOKUP(C13,NRR!$C$9:$Y$28,7,FALSE),IF('ELL (Método 2)'!$E$5='ELL (Método 2)'!$H$1,VLOOKUP(C13,NRR!$C$9:$Y$28,19,FALSE),IF('ELL (Método 2)'!$E$5='ELL (Método 2)'!$I$1,VLOOKUP(C13,NRR!$C$9:$Y$28,22,FALSE),"Elegir Metodo"))))),"-") -> - | G13: =Costes!$C$3*'ELL (Método 2)'!F13 -> 0 | H13: =+Costes!$C$2 -> 0.06 | I13: - | J13: - | K13: - | Q13: 0 | S13: -
E14: =IFERROR((IF($E$5=$F$1,VLOOKUP(C14,NRR!$C$9:$Y$28,3,FALSE),IF('ELL (Método 2)'!$E$5='ELL (Método 2)'!$G$1,VLOOKUP(C14,NRR!$C$9:$Y$28,7,FALSE),IF('ELL (Método 2)'!$E$5='ELL (Método 2)'!$H$1,VLOOKUP(C14,NRR!$C$9:$Y$28,19,FALSE),IF('ELL (Método 2)'!$E$5='ELL (Método 2)'!$I$1,VLOOKUP(C14,NRR!$C$9:$Y$28,22,FALSE),"Elegir Metodo"))))),"-") -> - | G14: =Costes!$C$3*'ELL (Método 2)'!F14 -> 0 | H14: =+Costes!$C$2 -> 0.06 | I14: - | J14: - | K14: - | Q14: 0 | S14: -
E15: =IFERROR((IF($E$5=$F$1,VLOOKUP(C15,NRR!$C$9:$Y$28,3,FALSE),IF('ELL (Método 2)'!$E$5='ELL (Método 2)'!$G$1,VLOOKUP(C15,NRR!$C$9:$Y$28,7,FALSE),IF('ELL (Método 2)'!$E$5='ELL (Método 2)'!$H$1,VLOOKUP(C15,NRR!$C$9:$Y$28,19,FALSE),IF('ELL (Método 2)'!$E$5='ELL (Método 2)'!$I$1,VLOOKUP(C15,NRR!$C$9:$Y$28,22,FALSE),"Elegir Metodo"))))),"-") -> - | G15: =Costes!$C$3*'ELL (Método 2)'!F15 -> 0 | H15: =+Costes!$C$2 -> 0.06 | I15: - | J15: - | K15: - | Q15: 0 | S15: -
E16: =IFERROR((IF($E$5=$F$1,VLOOKUP(C16,NRR!$C$9:$Y$28,3,FALSE),IF('ELL (Método 2)'!$E$5='ELL (Método 2)'!$G$1,VLOOKUP(C16,NRR!$C$9:$Y$28,7,FALSE),IF('ELL (Método 2)'!$E$5='ELL (Método 2)'!$H$1,VLOOKUP(C16,NRR!$C$9:$Y$28,19,FALSE),IF('ELL (Método 2)'!$E$5='ELL (Método 2)'!$I$1,VLOOKUP(C16,NRR!$C$9:$Y$28,22,FALSE),"Elegir Metodo"))))),"-") -> - | G16: =Costes!$C$3*'ELL (Método 2)'!F16 -> 0 | H16: =+Costes!$C$2 -> 0.06 | I16: - | J16: - | K16: - | Q16: 0 | S16: -
E17: =IFERROR((IF($E$5=$F$1,VLOOKUP(C17,NRR!$C$9:$Y$28,3,FALSE),IF('ELL (Método 2)'!$E$5='ELL (Método 2)'!$G$1,VLOOKUP(C17,NRR!$C$9:$Y$28,7,FALSE),IF('ELL (Método 2)'!$E$5='ELL (Método 2)'!$H$1,VLOOKUP(C17,NRR!$C$9:$Y$28,19,FALSE),IF('ELL (Método 2)'!$E$5='ELL (Método 2)'!$I$1,VLOOKUP(C17,NRR!$C$9:$Y$28,22,FALSE),"Elegir Metodo"))))),"-") -> - | G17: =Costes!$C$3*'ELL (Método 2)'!F17 -> 0 | H17: =+Costes!$C$2 -> 0.06 | I17: - | J17: - | K17: - | Q17: 0 | S17: -
E18: =IFERROR((IF($E$5=$F$1,VLOOKUP(C18,NRR!$C$9:$Y$28,3,FALSE),IF('ELL (Método 2)'!$E$5='ELL (Método 2)'!$G$1,VLOOKUP(C18,NRR!$C$9:$Y$28,7,FALSE),IF('ELL (Método 2)'!$E$5='ELL (Método 2)'!$H$1,VLOOKUP(C18,NRR!$C$9:$Y$28,19,FALSE),IF('ELL (Método 2)'!$E$5='ELL (Método 2)'!$I$1,VLOOKUP(C18,NRR!$C$9:$Y$28,22,FALSE),"Elegir Metodo"))))),"-") -> - | G18: =Costes!$C$3*'ELL (Método 2)'!F18 -> 0 | H18: =+Costes!$C$2 -> 0.06 | I18: - | J18: - | K18: - | Q18: 0 | S18: -
E19: =IFERROR((IF($E$5=$F$1,VLOOKUP(C19,NRR!$C$9:$Y$28,3,FALSE),IF('ELL (Método 2)'!$E$5='ELL (Método 2)'!$G$1,VLOOKUP(C19,NRR!$C$9:$Y$28,7,FALSE),IF('ELL (Método 2)'!$E$5='ELL (Método 2)'!$H$1,VLOOKUP(C19,NRR!$C$9:$Y$28,19,FALSE),IF('ELL (Método 2)'!$E$5='ELL (Método 2)'!$I$1,VLOOKUP(C19,NRR!$C$9:$Y$28,22,FALSE),"Elegir Metodo"))))),"-") -> - | G19: =Costes!$C$3*'ELL (Método 2)'!F19 -> 0 | H19: =+Costes!$C$2 -> 0.06 | I19: - | J19: - | K19: - | Q19: 0 | S19: -
E20: =IFERROR((IF($E$5=$F$1,VLOOKUP(C20,NRR!$C$9:$Y$28,3,FALSE),IF('ELL (Método 2)'!$E$5='ELL (Método 2)'!$G$1,VLOOKUP(C20,NRR!$C$9:$Y$28,7,FALSE),IF('ELL (Método 2)'!$E$5='ELL (Método 2)'!$H$1,VLOOKUP(C20,NRR!$C$9:$Y$28,19,FALSE),IF('ELL (Método 2)'!$E$5='ELL (Método 2)'!$I$1,VLOOKUP(C20,NRR!$C$9:$Y$28,22,FALSE),"Elegir Metodo"))))),"-") -> - | G20: =Costes!$C$3*'ELL (Método 2)'!F20 -> 0 | H20: =+Costes!$C$2 -> 0.06 | I20: - | J20: - | K20: - | Q20: 0 | S20: -
E21: =IFERROR((IF($E$5=$F$1,VLOOKUP(C21,NRR!$C$9:$Y$28,3,FALSE),IF('ELL (Método 2)'!$E$5='ELL (Método 2)'!$G$1,VLOOKUP(C21,NRR!$C$9:$Y$28,7,FALSE),IF('ELL (Método 2)'!$E$5='ELL (Método 2)'!$H$1,VLOOKUP(C21,NRR!$C$9:$Y$28,19,FALSE),IF('ELL (Método 2)'!$E$5='ELL (Método 2)'!$I$1,VLOOKUP(C21,NRR!$C$9:$Y$28,22,FALSE),"Elegir Metodo"))))),"-") -> - | G21: =Costes!$C$3*'ELL (Método 2)'!F21 -> 0 | H21: =+Costes!$C$2 -> 0.06 | I21: - | J21: - | K21: - | Q21: 0 | S21: -
E22: =IFERROR((IF($E$5=$F$1,VLOOKUP(C22,NRR!$C$9:$Y$28,3,FALSE),IF('ELL (Método 2)'!$E$5='ELL (Método 2)'!$G$1,VLOOKUP(C22,NRR!$C$9:$Y$28,7,FALSE),IF('ELL (Método 2)'!$E$5='ELL (Método 2)'!$H$1,VLOOKUP(C22,NRR!$C$9:$Y$28,19,FALSE),IF('ELL (Método 2)'!$E$5='ELL (Método 2)'!$I$1,VLOOKUP(C22,NRR!$C$9:$Y$28,22,FALSE),"Elegir Metodo"))))),"-") -> - | G22: =Costes!$C$3*'ELL (Método 2)'!F22 -> 0 | H22: =+Costes!$C$2 -> 0.06 | I22: - | J22: - | K22: - | Q22: 0 | S22: -
E23: =IFERROR((IF($E$5=$F$1,VLOOKUP(C23,NRR!$C$9:$Y$28,3,FALSE),IF('ELL (Método 2)'!$E$5='ELL (Método 2)'!$G$1,VLOOKUP(C23,NRR!$C$9:$Y$28,7,FALSE),IF('ELL (Método 2)'!$E$5='ELL (Método 2)'!$H$1,VLOOKUP(C23,NRR!$C$9:$Y$28,19,FALSE),IF('ELL (Método 2)'!$E$5='ELL (Método 2)'!$I$1,VLOOKUP(C23,NRR!$C$9:$Y$28,22,FALSE),"Elegir Metodo"))))),"-") -> - | G23: =Costes!$C$3*'ELL (Método 2)'!F23 -> 0 | H23: =+Costes!$C$2 -> 0.06 | I23: - | J23: - | K23: - | Q23: 0 | S23: -
E24: =IFERROR((IF($E$5=$F$1,VLOOKUP(C24,NRR!$C$9:$Y$28,3,FALSE),IF('ELL (Método 2)'!$E$5='ELL (Método 2)'!$G$1,VLOOKUP(C24,NRR!$C$9:$Y$28,7,FALSE),IF('ELL (Método 2)'!$E$5='ELL (Método 2)'!$H$1,VLOOKUP(C24,NRR!$C$9:$Y$28,19,FALSE),IF('ELL (Método 2)'!$E$5='ELL (Método 2)'!$I$1,VLOOKUP(C24,NRR!$C$9:$Y$28,22,FALSE),"Elegir Metodo"))))),"-") -> - | G24: =Costes!$C$3*'ELL (Método 2)'!F24 -> 0 | H24: =+Costes!$C$2 -> 0.06 | I24: - | J24: - | K24: - | Q24: 0 | S24: -
E25: =IFERROR((IF($E$5=$F$1,VLOOKUP(C25,NRR!$C$9:$Y$28,3,FALSE),IF('ELL (Método 2)'!$E$5='ELL (Método 2)'!$G$1,VLOOKUP(C25,NRR!$C$9:$Y$28,7,FALSE),IF('ELL (Método 2)'!$E$5='ELL (Método 2)'!$H$1,VLOOKUP(C25,NRR!$C$9:$Y$28,19,FALSE),IF('ELL (Método 2)'!$E$5='ELL (Método 2)'!$I$1,VLOOKUP(C25,NRR!$C$9:$Y$28,22,FALSE),"Elegir Metodo"))))),"-") -> - | G25: =Costes!$C$3*'ELL (Método 2)'!F25 -> 0 | H25: =+Costes!$C$2 -> 0.06 | I25: - | J25: - | K25: - | Q25: 0 | S25: -
E26: =IFERROR((IF($E$5=$F$1,VLOOKUP(C26,NRR!$C$9:$Y$28,3,FALSE),IF('ELL (Método 2)'!$E$5='ELL (Método 2)'!$G$1,VLOOKUP(C26,NRR!$C$9:$Y$28,7,FALSE),IF('ELL (Método 2)'!$E$5='ELL (Método 2)'!$H$1,VLOOKUP(C26,NRR!$C$9:$Y$28,19,FALSE),IF('ELL (Método 2)'!$E$5='ELL (Método 2)'!$I$1,VLOOKUP(C26,NRR!$C$9:$Y$28,22,FALSE),"Elegir Metodo"))))),"-") -> - | G26: =Costes!$C$3*'ELL (Método 2)'!F26 -> 0 | H26: =+Costes!$C$2 -> 0.06 | I26: - | J26: - | K26: - | Q26: 0 | S26: -

Sheet Sensibilidad N1

Sheet Sensibilidad Presion

Sheet Sensibilidad CI

Sheet Sensibilidad CA
